{"text_format":"1","workbook":"xlsx","n_sheets":18,"sheets":["Инструкция","Титульный","Параметры","Территории","Показатели","Товары и услуги","Потребительские характеристики","Инвестиционная программа","Изменения инвест. программы","Ссылки на публикации","Сведения об изменениях","Комментарий","Ошибки и предупреждения","Columns","Rows","Reference","RegistryMunicipal","SheetList"],"not_rendered":{"charts":0,"images":18,"macros":1,"external_links":3,"defined_names":185,"comments":0,"pivot_tables":0},"unopened":[],"bounds":{"document_bytes":16777216,"sheet_cells":100000,"rows_first":2000,"rows_last":500,"rows_between":2000,"halvings":0,"cell_chars":16384,"cell_head_chars":4096},"cells_cut":0,"cells_raw":0,"read":"whole","date_system":"1900"}

{"sheet":"Инструкция","index":0,"n_rows":241,"n_cols":16,"rows_kept":241,"cut":false,"hidden":false,"merged":[[203,6,204,23],[205,6,205,23],[206,6,207,23],[195,6,195,23],[196,6,198,23],[199,6,199,23],[200,6,202,23],[190,6,191,23],[192,6,192,23],[193,6,194,23],[173,6,173,23],[177,6,182,23],[183,6,189,23],[174,6,176,23],[166,6,167,23],[159,6,159,23],[160,6,161,23],[168,6,169,23],[170,6,172,23],[158,6,158,23],[157,6,157,23],[162,6,162,23],[163,6,163,23],[164,6,165,23],[146,6,148,23],[149,6,150,23],[151,6,152,23],[153,6,155,23],[156,6,156,23],[134,6,137,23],[143,6,145,23],[128,6,129,23],[130,6,131,23],[132,6,133,23],[138,6,142,23],[125,6,126,23],[127,6,127,23],[104,6,110,23],[111,6,113,23],[114,6,115,23],[118,6,118,23],[116,6,117,23],[119,6,121,23],[122,6,122,23],[26,5,26,12],[26,15,26,23],[27,15,27,23],[43,4,61,23],[123,6,124,23],[1,1,1,7],[213,4,214,23],[65,4,65,5],[65,6,65,9],[81,4,99,23],[100,4,100,23],[101,5,102,23],[103,5,103,23],[64,4,64,5],[64,6,64,10],[2,1,2,2],[4,1,4,24],[6,4,22,23],[25,5,25,12],[63,4,63,23],[25,15,25,23],[208,6,208,23],[215,5,219,23],[220,5,224,23],[209,5,212,23],[240,4,240,16],[225,5,225,18],[227,5,227,23],[238,1,238,24],[239,1,239,24]]}
[]
[null,{"$f":"\"Код шаблона: \" & Getcode()","v":"Код шаблона: ELPASS.JKH.OPEN.INFO.BALANCE.HVS"}]
[null,{"$f":"\"Версия \" & Getversion() & \" от \" & GetTemplateDate()","v":"Версия 1.0 от 01.10.2017"}]
[]
[null,{"$f":"GetTemplateName()","v":"Показатели, подлежащие раскрытию организациями, осуществляющими холодное водоснабжение"}]
[]
[null,null,null,null,"• На рабочем месте должна быть установлена полная версия приложения Microsoft Office Excel 2007 SP3, 2010, 2013, 2016. Microsoft Office Excel 2003 или иные офисные пакеты не поддерживаются.\n\n• Для корректной работы отчёта требуется включить макросы и выбрать низкий уровень безопасности:\nВ меню MS Excel 2007/2010: Параметры Excel | Центр управления безопасностью | Параметры центра управления безопасностью | Параметры макросов | Включить все макросы | ОК\n\n• Не рекомендуется снимать защиту с листов и каким-либо образом модифицировать защищаемые формулы и расчётные поля. В случае внесения несанкционированных изменений отчёт будет отклонён системой\n\n• При сохранении не следует выбирать формат XLSX (Книга Excel), так как в указанном формате макросы, необходимые для работы отчёта, безвозвратно удаляются, а также форматы XLS или XLSB. Должен использоваться формат XLSM\n\n"]
[]
[]
[]
[]
[]
[]
[]
[]
[]
[]
[]
[]
[]
[]
[]
[]
[]
[]
[null,null,null,null,"A"," - не обязательные для заполнения",null,null,null,null,null,null,null,null,"A"," - обязательные для заполнения"]
[null,null,null,null,"A"," - заполняемые автоматически",null,null,null,null,null,null,null,null,"A"," - незаполняемые поля"]
[]
[]
[]
[]
[]
[]
[]
[]
[]
[]
[]
[]
[]
[]
[]
[]
[null,null,null,null,"• При сохранении отчета осуществляется проверка корректности данных, в том числе на наличие значений в ячейках, обязательных для заполнения\n\n• Если какая-то ячейка не удовлетворяет условию проверки, на лист «Ошибки и предупреждения» добавляется гиперссылка на данную ячейку и указывается причина ошибки\n\n• В колонке «Статус» для каждого сообщения возможны 2 значения: ошибка и предупреждение\n\n• При наличии сообщений со статусом «Ошибка» отчет будет отклонён системой\n\n• Сообщения со статусом «Предупреждение» носят информационный характер, и такой отчет будет принят системой"]
[]
[]
[]
[]
[]
[]
[]
[]
[]
[]
[]
[]
[]
[]
[]
[]
[]
[]
[]
[null,null,null,null,"Служба технической поддержки группы компаний \"Экстрим\""]
[null,null,null,null,"E-mail:",null,"rek@xrm.ru"]
[null,null,null,null,"Телефон:",null,"(343) 2222-139"]
[]
[]
[]
[]
[]
[]
[]
[]
[]
[]
[]
[]
[]
[]
[]
[null,null,null,null,"• На листах «Титульный», «Параметры» и «Территории» обязательно заполните все ячейки голубого цвета. \nДалее нажмите кнопку «Начать заполнение отчета». Отобразятся листы для заполнения.\n\n• Если в поле, обязательном для заполнении, для вашей организации показатель отсутствует, введите в поле «0» (для числовых показателей) и «-» (для текстовых).\n\n• Вводите дату непосредственно в ячейку в формате - 'ДД.ММ.ГГГГ'.\n\n• Для добавления гиперссылки дважды щелкните левой кнопкой мыши по ячейке и только после этого  вставьте скопированный элемент.\n\n• Добавьте комментарии к раскрываемым сведениям на листе «Комментарии» (при необходимости).\n"]
[]
[]
[]
[]
[]
[]
[]
[]
[]
[]
[]
[]
[]
[]
[]
[]
[]
[]
[null,null,null,null,"Данный шаблон разработан в соответствии с:"]
[null,null,null,null,"   •","Постановлением Правительства РФ от 17 января 2013 г. № 6 \"О стандартах раскрытия информации в сфере водоснабжения и водоотведения\""]
[]
[null,null,null,null,null,"II. Стандарты раскрытия информации регулируемыми организациями, осуществляющими холодное водоснабжение"]
[null,null,null,null,null,null,"14. Регулируемой организацией подлежит раскрытию информация:\nв) об основных показателях финансово-хозяйственной деятельности регулируемой организации, включая структуру основных производственных затрат (в части регулируемой деятельности);\nг) об основных потребительских характеристиках регулируемых товаров и услуг регулируемой организации и их соответствии установленным требованиям;\nд) об инвестиционных программах регулируемой организации и отчетах об их реализации;"]
[]
[]
[]
[]
[]
[]
[null,null,null,null,null,null,"18. Информация об основных показателях финансово-хозяйственной деятельности регулируемой организации, включая структуру основных производственных затрат (в части регулируемой деятельности), содержит сведения:"]
[]
[]
[null,null,null,null,null,null,"а) о выручке от вида регулируемой деятельности (тыс. рублей) с  разбивкой по видам деятельности;"]
[]
[null,null,null,null,null,null,"б) о себестоимости производимых товаров (оказываемых услуг) по  виду регулируемой деятельности (тыс. рублей), включая:"]
[]
[null,null,null,null,null,null,"расходы на оплату холодной воды, приобретаемой у других организаций для последующей подачи потребителям;"]
[null,null,null,null,null,null,"расходы на покупаемую электрическую энергию (мощность), используемую в технологическом процессе (с указанием средневзвешенной стоимости 1 кВт·ч), и объем приобретения электрической энергии;"]
[]
[]
[null,null,null,null,null,null,"расходы на химические реагенты, используемые в технологическом процессе;"]
[null,null,null,null,null,null,"расходы на оплату труда и отчисления на социальные нужды основного производственного персонала;"]
[]
[null,null,null,null,null,null,"расходы на оплату труда и отчисления на социальные нужды административно-управленческого персонала;"]
[]
[null,null,null,null,null,null,"расходы на амортизацию основных производственных средств;"]
[null,null,null,null,null,null,"расходы на аренду имущества, используемого для осуществления регулируемого вида деятельности;"]
[]
[null,null,null,null,null,null,"общепроизводственные расходы, в том числе отнесенные к ним расходы на текущий и капитальный ремонт;"]
[]
[null,null,null,null,null,null,"общехозяйственные расходы, в том числе отнесенные к ним расходы на текущий и капитальный ремонт;"]
[]
[null,null,null,null,null,null,"расходы на капитальный и текущий ремонт основных производственных средств (в том числе информация об объемах товаров и услуг, их стоимости и способах приобретения у тех организаций, сумма оплаты услуг которых превышает 20 процентов суммы расходов по указанной статье расходов);"]
[]
[]
[]
[null,null,null,null,null,null,"расходы на услуги производственного характера, оказываемые по договорам с организациями на проведение регламентных работ в рамках технологического процесса (в том числе информация об объемах товаров и услуг, их стоимости и способах приобретения у тех организаций, сумма оплаты услуг которых превышает 20 процентов суммы расходов по указанной статье расходов);"]
[]
[]
[]
[]
[null,null,null,null,null,null,"прочие расходы, которые подлежат отнесению на регулируемые виды деятельности в соответствии с основами ценообразования в сфере водоснабжения и водоотведения, утверждаемыми Правительством Российской Федерации;"]
[]
[]
[null,null,null,null,null,null,"в) о чистой прибыли, полученной от регулируемого вида деятельности, с указанием размера ее расходования на финансирование мероприятий, предусмотренных инвестиционной программой регулируемой организации (тыс. рублей);"]
[]
[]
[null,null,null,null,null,null,"г) об изменении стоимости основных фондов (в том числе за счет их ввода в эксплуатацию (вывода из эксплуатации)), их переоценки (тыс. рублей);"]
[]
[null,null,null,null,null,null,"д) о валовой прибыли (убытках) от продажи товаров и услуг по регулируемому виду деятельности (тыс. рублей);"]
[]
[null,null,null,null,null,null,"е) о годовой бухгалтерской отчетности, включая бухгалтерский баланс и приложения к нему (раскрывается регулируемой организацией, выручка от регулируемой деятельности которой превышает 80 процентов совокупной выручки за отчетный год);"]
[]
[]
[null,null,null,null,null,null,"ж) об объеме поднятой воды (тыс. куб. метров);"]
[null,null,null,null,null,null,"з) об объеме покупной воды (тыс. куб. метров);"]
[null,null,null,null,null,null,"о) о среднесписочной численности основного производственного персонала (человек);"]
[null,null,null,null,null,null,"и) об объеме воды, пропущенной через очистные сооружения (тыс. куб. метров);"]
[null,null,null,null,null,null,"к) об объеме отпущенной потребителям воды, определенном по приборам учета и расчетным путем (по нормативам потребления) (тыс. куб. метров);"]
[]
[null,null,null,null,null,null,"л) о потерях воды в сетях (процентов);"]
[null,null,null,null,null,null,"м) о среднесписочной численности основного производственного персонала (человек);"]
[null,null,null,null,null,null,"н) об удельном расходе электроэнергии на подачу воды в сеть (тыс. кВт·ч или тыс. куб. метров);"]
[]
[null,null,null,null,null,null,"о) о расходе воды на собственные (в том числе хозяйственно-бытовые) нужды (процент объема отпуска воды потребителям);"]
[]
[null,null,null,null,null,null,"п) о показателе использования производственных объектов (по объему перекачки) по отношению к пиковому дню отчетного года (процентов)."]
[]
[null,null,null,null,null,null,"19. Информация об основных потребительских характеристиках регулируемых товаров и услуг регулируемой организации и их соответствии установленным требованиям содержит сведения:\n\n"]
[]
[]
[null,null,null,null,null,null,"а) о количестве аварий на системах холодного водоснабжения (единиц на километр);"]
[null,null,null,null,null,null,"б) о количестве случаев ограничения подачи холодной воды по графику с указанием срока действия таких ограничений (менее 24 часов в  сутки) и доле потребителей (процентов), затронутых ограничениями подачи холодной воды;"]
[]
[]
[null,null,null,null,null,null,"в) об общем количестве проведенных проб качества воды по следующим показателям:\nмутность;\nцветность;\nхлор остаточный общий, в том числе хлор остаточный связанный и хлор остаточный свободный;\nобщие колиформные бактерии;\nтермотолерантные колиформные бактерии;"]
[]
[]
[]
[]
[]
[null,null,null,null,null,null,"г) о количестве проведенных проб, выявивших несоответствие холодной воды санитарным нормам (предельно допустимой концентрации), по следующим показателям:\nмутность;\nцветность;\nхлор остаточный общий, в том числе хлор остаточный связанный и хлор остаточный свободный;\nобщие колиформные бактерии;\nтермотолерантные колиформные бактерии;"]
[]
[]
[]
[]
[]
[]
[null,null,null,null,null,null,"д) о доле исполненных в срок договоров о подключении (процент общего количества заключенных договоров о подключении);"]
[]
[null,null,null,null,null,null,"е) о средней продолжительности рассмотрения заявлений о подключении (дней)."]
[null,null,null,null,null,null,"20. Информация об инвестиционных программах регулируемой организации содержит сведения:"]
[]
[null,null,null,null,null,null,"а) о наименовании, дате утверждения и цели инвестиционной программы;"]
[null,null,null,null,null,null,"б) о наименовании органа исполнительной власти субъекта Российской Федерации, утвердившего инвестиционную программу, и о наименовании органа местного самоуправления, согласовавшего инвестиционную программу;"]
[]
[]
[null,null,null,null,null,null,"в) о сроках начала и окончания реализации инвестиционной программы;"]
[null,null,null,null,null,null,"г) о потребностях в финансовых средствах, необходимых для реализации инвестиционной программы, в том числе с разбивкой по годам, мероприятиям и источникам финансирования инвестиционной программы (тыс. рублей);"]
[]
[]
[null,null,null,null,null,null,"д) о плановых значениях целевых показателей инвестиционной программы (с разбивкой по мероприятиям);"]
[]
[null,null,null,null,null,null,"е) о фактических значениях целевых показателей (тыс. рублей);"]
[null,null,null,null,null,null,"ж) об использовании инвестиционных средств за отчетный год с разбивкой по кварталам, мероприятиям и источникам финансирования инвестиционной программы (тыс. рублей);"]
[]
[null,null,null,null,null,null,"з) о внесении изменений в инвестиционную программу."]
[null,null,null,null,"   •","Приказом Федеральной службы по тарифам от 15 мая 2013 г. № 129 «Об утверждении форм предоставления информации, подлежащей раскрытию, организациями, осуществляющими горячее водоснабжение, холодное водоснабжение и водоотведение, и органами регулирования тарифов, а также Правил заполнения таких форм»"]
[]
[]
[]
[null,null,null,null,"Обязательность раскрытия информации и сроки раскрытия устанавливаются в соответствие с п.10 Постановления Правительства РФ от 17 января 2013 г. № 6: "]
[]
[null,null,null,null,null,"10. Регулируемые организации в течение 10 дней со дня размещения информации на своем сайте в сети «Интернет» сообщают в орган исполнительной власти субъекта Российской Федерации в области государственного регулирования тарифов о раскрытии соответствующей информации с указанием адреса страницы сайта в сети «Интернет», на которой размещена эта информация."]
[]
[]
[]
[]
[null,null,null,null,null,"Регулируемые организации в течение 10 дней со дня опубликования информации в официальных печатных изданиях в случае, предусмотренном пунктом 9 настоящего документа, сообщают в орган регулирования субъекта Российской Федерации в области государственного регулирования тарифов о раскрытии соответствующей информации с указанием наименования, номера и даты официального печатного издания, в котором опубликована эта информация."]
[]
[]
[]
[]
[]
[]
[]
[]
[]
[]
[]
[null,null,null,null,"Гиперссылки на листах вводите, не нарушая цвет ячейки (если копируете гиперссылку из браузера, то выполните двойной щелчок левой кнопки мыши по ячейке и только после этого можете вставить скопированный элемент)."]
[]
[]
[]
[]
[]
[null,{"$f":"IF(GetMode()=\"DEBUG\", \"Режим отладки\", \"\")","v":""}]
[null,"2017 © Общество с ограниченной ответственностью \"Элвинг\""]
[null,null,null,null,"http://elpass.ru"]

{"sheet":"Титульный","index":1,"n_rows":45,"n_cols":5,"rows_kept":45,"cut":false,"hidden":false,"merged":[[38,3,38,4],[3,3,3,4],[9,3,9,4],[17,3,17,4],[22,3,22,4],[26,3,26,4],[32,3,32,4]]}
[]
[]
[null,null,null,{"$f":"Getcode()","v":"ELPASS.JKH.OPEN.INFO.BALANCE.HVS"},{"$f":"Инструкция!version","v":"Версия 1.0 от 01.10.2017"}]
[null,null,null,{"$f":"GetTemplateName()","v":"Показатели, подлежащие раскрытию организациями, осуществляющими холодное водоснабжение"}]
[]
[null,null,null,"Субъект РФ","Республика Башкортостан"]
[]
[null,null,null,"Отчетный период","2017"]
[]
[null,null,null,"Сведения о регулируемой организации"]
[null,null,null,"Полное наименование организации","Ишимбайское муниципальное унитарное предприятие \"Межрайкоммунводоканал\""]
[null,null,null,"Сокращенное наименование организации","ИМУП \"Межрайкоммунводоканал\""]
[null,null,null,"ОГРН","1020201773349"]
[null,null,null,"ИНН","0261002348"]
[null,null,null,"КПП","026101001"]
[null,null,null,"Режим налогообложения","Общий"]
[]
[null,null,null,"Сведения о филиале"]
[null,null,null,"Является ли данное юридическое лицо филиалом другой организации",""]
[null,null,null,"Наименование филиала"]
[null,null,null,"КПП филиала",""]
[]
[null,null,null,"Адрес регулируемой организации"]
[null,null,null,"Юридический адрес","453204, РБ, г. Ишимбай, ул. Жукова, д. 16"]
[null,null,null,"Почтовый адрес","453204, РБ, г. Ишимбай, ул. Жукова, д. 16"]
[]
[null,null,null,"Руководитель регулируемой организации"]
[null,null,null,"Фамилия","Матросов "]
[null,null,null,"Имя","Александр"]
[null,null,null,"Отчество (при наличии)","Васильевич"]
[null,null,null,"Контактный телефон","(34794) 4-23-23"]
[]
[null,null,null,"Главный бухгалтер регулируемой организации"]
[null,null,null,"Фамилия","Фаурян"]
[null,null,null,"Имя","Сергей "]
[null,null,null,"Отчество (при наличии)","Константинович"]
[null,null,null,"Контактный телефон","(34794) 4-29-56"]
[]
[null,null,null,"Должностное лицо, ответственное за составление формы"]
["L11.1","Ответственный.ФИО",null,"Фамилия","Стародубова "]
[null,null,null,"Имя","Елена"]
[null,null,null,"Отчество (при наличии)","Николаевна"]
["L11.2","Ответственный.Должность",null,"Должность","главный экономист"]
["L11.3","Ответственный.Телефон",null,"Контактный телефон","(34794) 4-13-77"]
["L11.4","Ответственный. E-Mail",null,"e-mail","ishvodokanal@rambler.ru"]

{"sheet":"Параметры","index":2,"n_rows":33,"n_cols":5,"rows_kept":33,"cut":false,"hidden":false,"merged":[[3,3,5,4],[19,3,19,4]]}
[]
[]
[null,null,null,{"$f":"Getcode()","v":"ELPASS.JKH.OPEN.INFO.BALANCE.HVS"},{"$f":"Инструкция!version","v":"Версия 1.0 от 01.10.2017"}]
[null,null,null,{"$f":"GetTemplateName()","v":"Показатели, подлежащие раскрытию организациями, осуществляющими холодное водоснабжение"}]
[]
[]
[]
[null,null,null,"Тип отчета","Первичное раскрытие информации"]
[]
[null,null,null,"Вид регулируемой деятельности","Подключение (технологическое присоединение) к централизованной системе водоснабжения"]
[null,null,null,"Укажите порядковый номер отчета",2]
[]
[null,null,null,"Регулируемая организация осуществляет сдачу годового бухгалтерского баланса в налоговые органы","да"]
[null,null,null,"Дата направления годового бухгалтерского баланса в налоговые органы","2018-03-02"]
[]
[null,null,null,"Превышает ли выручка от регулируемой деятельности 80% совокупной выручки за отчетный год","нет"]
[null,null,null,"По решению организации информация раскрыта на ее официальном сайте в сети Интернет","да"]
[null,null,null,"Отсутствует Интернет в границах территории муниципальных образований, где организация осуществляет регулируемые услуги","нет"]
[]
[null,null,null,"Наличие товаров и услуг, приобретенных у организаций, сумма оплаты услуг которых превышает 20% суммы расходов по статье:"]
[null,null,null,"\"Расходы на капитальный и текущий ремонт основных производственных средств\"","нет"]
[null,null,null,"\"Расходы на услуги производственного характера, оказываемые по договорам с организациями на проведение регламентных работ в рамках технологического процесса\"","нет"]
[]
[null,null,null,"Организация выполняет инвестиционную программу","нет"]
[]
[null,null,null,"Наименование инвестиционной программы"]
[null,null,null,"Дата утверждения инвестиционной программы"]
[null,null,null,"Дата начала реализации инвестиционной программы"]
[null,null,null,"Дата окончания реализации инвестиционной программы"]
[null,null,null,"Цели инвестиционной программы"]
[null,null,null,"Наименование органа исполнительной власти субъекта РФ, утвердившего инвестиционную программу"]
[null,null,null,"Наименование органа местного самоуправления,согласовавшего инвестиционную программу"]
[null,null,null,"Вносились ли изменения в инвестиционную прогамму"]

{"sheet":"Территории","index":3,"n_rows":10,"n_cols":35,"rows_kept":10,"cut":false,"hidden":false,"merged":[[2,5,2,12],[3,5,4,12],[5,5,5,7],[5,9,5,11],[6,5,6,6],[6,8,6,10],[7,5,8,5],[7,6,8,6],[7,7,8,7],[8,8,8,9],[8,11,8,12]]}
[null,null,null,null,null,{"$f":"Getcode()","v":"ELPASS.JKH.OPEN.INFO.BALANCE.HVS"},null,null,null,null,null,null,{"$f":"Инструкция!version","v":"Версия 1.0 от 01.10.2017"}]
[]
[null,null,null,null,null,"Информация о территориях действия тарифов (оказания услуг) регулируемой организации "]
[null,null,null,null,null,"Ишимбайское муниципальное унитарное предприятие \"Межрайкоммунводоканал\""]
[]
[null,null,null,null,null,"Городской округ / муниципальный район",null,null,null,"Муниципальное образование"]
[null,null,null,null,null,"№ п/п",null,"Наименование","№ п/п",null,null,"Наименование","ОКТМО","Имя диапазона"]
[null,null,null,"1","МР",null,1,"Ишимбайский муниципальный район","МО",null,1,"Город Ишимбай",80631101,null,"MO_LIST_38",null,null,null,null,null,null,null,null,null,null,null,null,1]
[null,null,null,null,null,null,null,null,null,null,null,"Добавить МО",null,null,null,null,null,null,null,null,null,null,null,null,null,null,null,null,null,null,null,null,null,null,"add_MO_range"]
[null,null,null,null,null,null,null,"Добавить ГО / МР",null,null,null,null,null,null,null,null,null,null,null,null,null,null,null,null,null,null,null,null,null,null,"add_MR_range"]

{"sheet":"Показатели","index":4,"n_rows":56,"n_cols":9,"rows_kept":56,"cut":false,"hidden":false,"merged":[[3,3,4,7],[5,3,5,7]]}
["f"]
[]
[null,null,null,{"$f":"Getcode()","v":"ELPASS.JKH.OPEN.INFO.BALANCE.HVS"},null,null,null,{"$f":"Инструкция!version","v":"Версия 1.0 от 01.10.2017"}]
[null,null,null,"Информация об основных показателях финансово-хозяйственной деятельности регулируемой организации, включая структуру основных производственных затрат (в части регулируемых видов деятельности)"]
[]
[null,null,null,"Ишимбайское муниципальное унитарное предприятие \"Межрайкоммунводоканал\""]
[]
[null,null,null,"№ п/п","Наименование показателя","Значение","Единица измерения","Комментарии"]
[null,null,null,1,2,3,4,5]
[null,null,null,"1","Выручка от регулируемого вида деятельности с разбивкой по видам деятельности:",{"$f":"SUM(F11:F12)","v":112.3},"тыс. руб."]
[null,null,null,"1.1","Подключение (технологическое присоединение) к централизованной системе водоснабжения",112.3,"тыс. руб."]
[null,null,null,null,"Добавить вид деятельности",null,null,null,"add_TYPE_range"]
[null,null,null,"2","Себестоимость производимых товаров (оказываемых услуг) по регулируемому виду деятельности, включая: ",{"$f":"SUM(F14,F15,F18:F25,F28,F31:F33)","v":141.41},"тыс. руб."]
[null,null,null,"2.1","Расходы на оплату холодной воды, приобретаемой у других организаций для последующей подачи потребителям",0,"тыс. руб."]
[null,null,null,"2.2","Расходы на покупаемую электрическую энергию (мощность), используемую в технологическом процессе",0,"тыс. руб."]
[null,null,null,"2.2.1","Средневзвешенная стоимость 1 кВт*ч ( с учетом мощности)",0,"руб."]
[null,null,null,"2.2.2","Объем приобретенной электрической энергии",0,"тыс. кВт*ч"]
[null,null,null,"2.3","Расходы на химические реагенты, используемые в технологическом процессе",0,"тыс. руб."]
[null,null,null,"2.4","Расходы на оплату труда основного производственного персонала",28.63,"тыс. руб."]
[null,null,null,"2.5","Отчисления на социальные нужды основного производственного персонала",8.65,"тыс. руб."]
[null,null,null,"2.6","Расходы на оплату труда административно-управленческого персонала",0,"тыс. руб."]
[null,null,null,"2.7","Отчисления на социальные нужды административно-управленческого персонала",0,"тыс. руб."]
[null,null,null,"2.8","Расходы на амортизацию основных производственных средств",0,"тыс. руб."]
[null,null,null,"2.9","Расходы на аренду имущества, используемого для осуществления регулируемого вида деятельности",0,"тыс. руб."]
[null,null,null,"2.10","Общепроизводственные расходы, в том числе отнесенные к ним:",86.7,"тыс. руб."]
[null,null,null,"2.10.1","Расходы на текущий ремонт",0,"тыс. руб."]
[null,null,null,"2.10.2","Расходы на капитальный ремонт",0,"тыс. руб."]
[null,null,null,"2.11","Общехозяйственные расходы, в том числе отнесенные к ним:",17.43,"тыс. руб."]
[null,null,null,"2.11.1","Расходы на текущий ремонт",0,"тыс. руб."]
[null,null,null,"2.11.2","Расходы на капитальный ремонт",0,"тыс. руб."]
[null,null,null,"2.12","Расходы на капитальный и текущий ремонт основных производственных средств",0,"тыс. руб."]
[null,null,null,"2.13","Расходы на услуги производственного характера, оказываемые по договорам с организациями на проведение регламентных работ в рамках технологического процесса",0,"тыс. руб."]
[null,null,null,"2.14","Прочие расходы, которые подлежат отнесению к регулируемым видам деятельности в соответствии с основами ценообразования \nв сфере водоснабжения и водоотведения, утвержденными постановлением Правительства Российской Федерации от 13.05.2013 N 406 (Официальный интернет-портал правовой информации http://www.pravo.gov.ru, 15.05.2013)",{"$f":"SUM(F34:F35)","v":0},"тыс. руб."]
[null,null,null,"2.14.0"]
[null,null,null,null,"Добавить расходы",null,null,null,"add_IDEX_range"]
[null,null,null,"3","Чистая прибыль, полученная от регулируемого вида деятельности, в том числе:",0,"тыс. руб."]
[null,null,null,"3.1","Размер расходования чистой прибыли на финансирование мероприятий, предусмотренных инвестиционной программой регулируемой организации",0,"тыс. руб."]
[null,null,null,"4","Сведения об изменении стоимости основных фондов, в том числе:",0,"тыс. руб."]
[null,null,null,"4.1","За счет ввода (вывода) из эксплуатации основных фондов",0,"тыс. руб."]
[null,null,null,"4.2","За счет стоимости переоценки основных фондов",0,"тыс. руб."]
[null,null,null,"5","Валовая прибыль (убытки) от реализации товаров и оказания услуг по регулируемому виду деятельности",-29.11,"тыс. руб."]
[null,null,null,"6","Годовая бухгалтерская отчетность, включая бухгалтерский баланс и приложения к нему (раскрывается регулируемой организацией, выручка от регулируемой деятельности которой превышает 80 процентов совокупной выручки за отчетный год)","http://92.242.46.82/UserFile/Download?guid=f6c11274-6c63-437f-858e-d320391e30b5"]
[null,null,null,"7","Объем поднятой воды",0,"тыс. куб.м."]
[null,null,null,"8","Объем покупной воды",0,"тыс. куб.м."]
[null,null,null,"9","Объем воды, пропущенной через очистные сооружения",0,"тыс. куб.м."]
[null,null,null,"10","Объем отпущенной потребителям воды, в том числе:",{"$f":"SUM(F47:F48)","v":0},"тыс. куб.м."]
[null,null,null,"10.1","По приборам учета",0,"тыс. куб.м."]
[null,null,null,"10.2","Расчетным путем (по нормативам потребления)",0,"тыс. куб.м."]
[null,null,null,"11","Потери воды в сетях",0,"тыс. куб.м."]
[null,null,null,"12","Среднесписочная численность основного производственного персонала",0,"человек"]
[null,null,null,"13","Удельный расход электроэнергии на подачу воды в сеть",0,"тыс. кВт.ч"]
[null,null,null,"14","Расход воды на собственные нужды (процент объема отпуска воды потребителям), в том числе:",0,"%"]
[null,null,null,"14.1","Хозяйственно-бытовые",0,"%"]
[null,null,null,"15","Показатели использования производственных объектов (по объему перекачки) по отношению к пиковому дню отчетного года",0,"%"]
[null,null,null,"15.0"]
[null,null,null,null,"Добавить объект",null,null,null,"add_IDEX_KG_range"]

{"sheet":"Товары и услуги","index":5,"n_rows":13,"n_cols":17,"rows_kept":13,"cut":false,"hidden":true,"merged":[[3,2,4,15],[5,2,5,15],[7,2,7,4],[7,5,7,7],[7,9,7,11],[11,3,11,13],[8,2,8,4],[8,5,8,7],[8,9,8,11],[9,3,9,13]]}
[]
[]
[null,null,{"$f":"Getcode()","v":"ELPASS.JKH.OPEN.INFO.BALANCE.HVS"},null,null,null,null,null,null,null,null,null,null,null,null,{"$f":"Инструкция!version","v":"Версия 1.0 от 01.10.2017"}]
[null,null,"Информация о товарах и услугах, приобретенных у организаций, сумма оплаты услуг которых превышает 20% от суммы расходов по статье. \nИх объемы, стоимость и способы приобретения."]
[]
[null,null,"Ишимбайское муниципальное унитарное предприятие \"Межрайкоммунводоканал\""]
[]
[null,null,"Наименование поставщика",null,null,"Способ приобретения",null,null,"Реквизиты договора","Наименование товара (услуги)",null,null,"Объем приобретенных товаров (услуг)","Единица измерения объема товаров (услуг)","Стоимость, тыс. руб.","Доля расходов от суммы расходов по указанной статье, %"]
[null,null,1,null,null,2,null,null,3,4,null,null,"5","6","7","8"]
[null,null,"Статья:","Расходы на ремонт (текущий и капитальный) основных производственных средств итого. Из них товары и услуги, приобретенные у организаций, сумма оплаты услуг которых превышает 20% суммы расходов",null,null,null,null,null,null,null,null,null,null,{"$f":"List10_RepairCosts","v":0}]
[null,null,null,null,"Добавить поставщика",null,null,null,null,null,null,null,null,null,null,null,"add_PROVIDER_range"]
[null,null,"Статья:","Расходы на услуги производственного характера, выполняемые по договорам с организациями на проведение регламентных работ в рамках технологического процесса. Из них товары и услуги, приобретенные у организаций, сумма оплаты услуг которых превышает 20% суммы расходов",null,null,null,null,null,null,null,null,null,null,{"$f":"List10_ProductionCosts","v":0}]
[null,null,null,null,"Добавить поставщика",null,null,null,null,null,null,null,null,null,null,null,"add_PROVIDER2_range"]

{"sheet":"Потребительские характеристики","index":6,"n_rows":34,"n_cols":8,"rows_kept":34,"cut":false,"hidden":false,"merged":[[2,3,2,5],[3,3,4,6],[5,3,5,6]]}
[]
[]
[null,null,null,{"$f":"Getcode()","v":"ELPASS.JKH.OPEN.INFO.BALANCE.HVS"},null,null,{"$f":"Инструкция!version","v":"Версия 1.0 от 01.10.2017"}]
[null,null,null,"Информация об основных потребительских характеристиках регулируемых товаров и услуг"]
[]
[null,null,null,"Ишимбайское муниципальное унитарное предприятие \"Межрайкоммунводоканал\""]
[]
[null,null,null,"№ п/п","Наименование показателя","Значение","Комментарии"]
[null,null,null,1,2,3,4]
[null,null,null,1,"Количество аварий на системах холодного водоснабжения, единиц на км *",0.45]
[null,null,null,2,"Количество случаев ограничения подачи холодной воды по графику с указанием срока действия таких ограничений (менее 24 часов в сутки)",{"$f":"SUM(F12:F13)","v":0}]
[null,null,null,"2.0"]
[null,null,null,null,"Добавить случай",null,null,"add_CASE_range"]
[null,null,null,"3","Доля потребителей, затронутых ограничениями подачи холодной воды, %",0]
[null,null,null,"4","Общее количество проведенных проб качества воды по следующим показателям:",7872]
[null,null,null,"4.1","Мутность",1949]
[null,null,null,"4.2","Цветность",1949]
[null,null,null,"4.3","Хлор остаточный общий, в том числе: ",60]
[null,null,null,"4.3.1","Хлор остаточный связанный",60]
[null,null,null,"4.3.2","Хлор остаточный свободный",0]
[null,null,null,"4.4","Общие колиформные бактерии",1957]
[null,null,null,"4.5","Термотолерантные колиформные бактерии",1957]
[null,null,null,"5","Количество проведенных проб, выявивших несоответствие холодной воды санитарным нормам (предельно допустимой концентрации), по следующим показателям:",0]
[null,null,null,"5.1","Мутность",0]
[null,null,null,"5.2","Цветность",0]
[null,null,null,"5.3","Хлор остаточный общий, в том числе: ",0]
[null,null,null,"5.3.1","Хлор остаточный связанный",0]
[null,null,null,"5.3.2","Хлор остаточный свободный",0]
[null,null,null,"5.4","Общие колиформные бактерии",0]
[null,null,null,"5.5","Термотолерантные колиформные бактерии",0]
[null,null,null,"6","Доля исполненных в срок договоров о подключении (процент общего количества заключенных договоров о подключении), %",100]
[null,null,null,"7","Средняя продолжительность рассмотрения заявок на подключение (технологическое присоединение), дней",5]
[]
[null,null,null,"*","Учитывается любое нарушение системы"]

{"sheet":"Инвестиционная программа","index":7,"n_rows":19,"n_cols":26,"rows_kept":19,"cut":false,"hidden":true,"merged":[[16,11,16,13],[15,10,16,10],[15,9,16,9],[15,8,16,8],[5,5,5,6],[5,11,6,13],[7,7,7,9],[7,11,7,13],[5,10,6,10],[10,11,10,13],[11,11,11,13],[12,11,12,13],[13,11,13,13],[15,11,15,13],[5,3,6,4],[15,7,16,7],[8,8,13,8],[8,7,13,7],[3,3,3,15],[8,6,17,6],[8,5,17,5],[8,4,17,4],[8,3,17,3],[5,15,6,15],[5,7,6,9],[7,3,7,4],[5,14,6,14],[10,10,13,10],[8,9,13,9],[8,10,9,10]]}
[]
[]
[null,null,null,null,{"$f":"Getcode()","v":"ELPASS.JKH.OPEN.INFO.BALANCE.HVS"},null,null,null,null,null,null,null,null,null,null,{"$f":"Инструкция!version","v":"Версия 1.0 от 01.10.2017"}]
[null,null,null,"Информация об инвестиционных программах"]
[]
[null,3,null,"Наименование мероприятия",null,"Срок реализации мероприятия",null,"Дифференциация по источникам финансирования / по целевым показателям",null,null,"Наименование показателя","Год/квартал",null,null,"Значение","Единицы измерения"]
[null,null,null,null,null,"Дата начала","Дата окончания"]
[null,3,null,"1",null,"2","3","4",null,null,"5","6",null,null,"7","8"]
[null,null,null,1,null,null,null,null,1,null,"Потребности в финансовых средствах, необходимых для реализации инвестиционной программы",null,1,null,null,"тыс. руб."]
[null,null,null,null,null,null,null,null,null,null,null,null,null,"Добавить год",null,null,null,null,null,null,null,null,null,null,null,"add_YEAR_range"]
[null,null,null,null,null,null,null,null,null,null,"Использование инвестиционных средств за отчетный год","I квартал",null,null,null,"тыс. руб."]
[null,null,null,null,null,null,null,null,null,null,null,"II квартал",null,null,null,"тыс. руб."]
[null,null,null,null,null,null,null,null,null,null,null,"III квартал",null,null,null,"тыс. руб."]
[null,null,null,null,null,null,null,null,null,null,null,"IV квартал",null,null,null,"тыс. руб."]
[null,null,null,null,null,null,null,null,null,"Добавить источник",null,null,null,null,null,null,null,null,null,null,null,"add_SOURCE_range"]
[null,null,null,null,null,null,null,null,1,"Целевой показатель инвестиционной программы:",null,"Плановое значение"]
[null,null,null,null,null,null,null,null,null,null,null,"Фактическое значение"]
[null,null,null,null,null,null,null,null,null,"Добавить показатель",null,null,null,null,null,null,null,null,null,null,null,"add_INVEST_INDEX_range"]
[null,null,null,null,"Добавить мероприятие",null,null,null,null,null,null,null,null,null,null,null,"add_EVENT_range"]

{"sheet":"Изменения инвест. программы","index":8,"n_rows":11,"n_cols":7,"rows_kept":11,"cut":false,"hidden":true,"merged":[[2,3,2,4],[5,3,5,5],[3,3,4,5],[6,3,6,6]]}
[]
[]
[null,null,null,{"$f":"Getcode()","v":"ELPASS.JKH.OPEN.INFO.BALANCE.HVS"},null,{"$f":"Инструкция!version","v":"Версия 1.0 от 01.10.2017"}]
[null,null,null,"Внесение изменений в инвестиционную программу"]
[]
[null,null,null,"Ишимбайское муниципальное унитарное предприятие \"Межрайкоммунводоканал\""]
[null,3]
[null,3,null,"№ п/п","Внесенные изменения","Дата внесения изменений"]
[null,3,null,"1","2","3"]
[null,null,null,"1"]
[null,null,null,null,"Добавить строку",null,"add_INFO_range"]

{"sheet":"Ссылки на публикации","index":9,"n_rows":19,"n_cols":11,"rows_kept":19,"cut":false,"hidden":false,"merged":[[15,3,17,3],[15,4,15,9],[3,3,4,9],[5,3,5,9],[9,4,9,9],[9,3,11,3],[12,3,14,3],[12,4,12,9]]}
["f"]
[]
[null,null,null,{"$f":"Getcode()","v":"ELPASS.JKH.OPEN.INFO.BALANCE.HVS"},null,null,null,null,null,{"$f":"Инструкция!version","v":"Версия 1.0 от 01.10.2017"}]
[null,null,null,"Ссылки на публикации"]
[]
[null,null,null,"Ишимбайское муниципальное унитарное предприятие \"Межрайкоммунводоканал\""]
[]
[null,null,null,"№ п/п","Содержание пункта","Наименование источника","Дата размещения информации","Номер издания","Дата издания","Адрес"]
[null,null,null,"1","2","3","4","5","6","7"]
[null,null,null,1,"Информация об основных показателях финансово-хозяйственной деятельности регулируемой организации, включая структуру основных производственных затрат (в части регулируемой деятельности)"]
[null,null,null,null,"Сайт организации в сети Интернет","www.mrkvk.ru","2018-03-22","х","х","http://mrkvk.ru/"]
[null,null,null,null,"Печатное издание",null,null,null,null,null,"FHD"]
[null,null,null,2,"Информация об основных потребительских характеристиках регулируемых товаров и услуг, оказываемых регулируемой организацией"]
[null,null,null,null,"Сайт организации в сети Интернет","www.mrkvk.ru","2018-03-22","х","х","http://mrkvk.ru/"]
[null,null,null,null,"Печатное издание",null,null,null,null,null,"FHD"]
[null,null,null,3,"Информация об инвестиционных программах регулируемой организации"]
[null,null,null,null,"Сайт организации в сети Интернет","www.mrkvk.ru","2018-03-22","х","х","http://mrkvk.ru/"]
[null,null,null,null,"Печатное издание",null,null,null,null,null,"FHD"]
[null,null,null,null,"Добавить публикацию",null,null,null,null,null,"add_PUBLIC_range"]

{"sheet":"Сведения об изменениях","index":10,"n_rows":11,"n_cols":7,"rows_kept":11,"cut":false,"hidden":true,"merged":[[2,3,2,4],[3,3,4,5],[5,3,5,5],[6,3,6,6]]}
[]
[]
[null,null,null,{"$f":"Getcode()","v":"ELPASS.JKH.OPEN.INFO.BALANCE.HVS"},null,{"$f":"Инструкция!version","v":"Версия 1.0 от 01.10.2017"}]
[null,null,null,"Сведения об изменениях"]
[]
[null,null,null,"Ишимбайское муниципальное унитарное предприятие \"Межрайкоммунводоканал\""]
[null,3]
[null,3,null,"№ п/п","Внесенные изменения","Дата внесения изменений"]
[null,3,null,"1","2","3"]
[null,null,null,"1"]
[null,null,null,null,"Добавить строку",null,"add_INFO_range"]

{"sheet":"Комментарий","index":11,"n_rows":11,"n_cols":4,"rows_kept":11,"cut":false,"hidden":false,"merged":[[7,1,7,2],[2,1,2,2],[3,1,5,2]]}
[]
[]
[null,{"$f":"Getcode()&\"                                                                                          \"&Инструкция!version","v":"ELPASS.JKH.OPEN.INFO.BALANCE.HVS                                                                                          Версия 1.0 от 01.10.2017"}]
[null,{"$f":"GetTemplateName()","v":"Показатели, подлежащие раскрытию организациями, осуществляющими холодное водоснабжение"}]
[]
[]
[]
[null,"Комментарии регулируемой организации"]
[null,"№","Комментарий"]
[null,1]
[null,null,"Добавить комментарий","add_COMMENTS_range"]

{"sheet":"Ошибки и предупреждения","index":12,"n_rows":4,"n_cols":4,"rows_kept":4,"cut":false,"hidden":false,"merged":[[1,1,1,3]]}
[]
[null,"Результат проверки"]
[]
[null,"Ссылка","Причина","Статус"]

{"sheet":"Columns","index":13,"n_rows":0,"n_cols":0,"rows_kept":0,"cut":false,"hidden":true,"merged":[]}

{"sheet":"Rows","index":14,"n_rows":80,"n_cols":35,"rows_kept":80,"cut":false,"hidden":true,"merged":[[19,2,22,2],[19,3,22,3],[19,4,22,4],[20,8,21,8],[20,5,21,5],[20,6,21,6],[20,7,21,7],[19,5,19,13],[60,4,60,9],[60,3,62,3],[60,2,62,2],[46,7,51,7],[46,8,51,8],[46,9,51,9],[55,7,56,7],[55,8,56,8],[55,9,56,9],[42,8,43,8],[42,9,43,9],[42,10,43,10],[35,3,44,3],[35,4,44,4],[35,5,44,5],[35,6,44,6],[35,7,40,7],[14,6,15,6],[14,7,15,7],[14,8,15,8],[7,3,11,3],[13,5,13,13],[7,2,11,2],[13,2,16,2],[13,3,16,3],[13,4,16,4],[14,5,15,5],[27,5,28,5],[27,6,28,6],[27,7,28,7],[27,8,28,8],[35,8,40,8],[37,11,37,13],[38,11,38,13],[30,5,31,5],[30,6,31,6],[30,7,31,7],[30,8,31,8],[35,9,40,9],[39,11,39,13],[35,2,44,2],[40,11,40,13],[42,11,42,13],[43,11,43,13],[55,10,56,10],[55,11,55,13],[56,11,56,13],[46,10,47,10],[48,10,51,10],[48,11,48,13],[49,11,49,13],[50,11,50,13],[51,11,51,13],[35,10,36,10],[37,10,40,10],[42,7,43,7],[75,11,75,12],[77,1,79,1],[77,2,79,2],[77,3,79,3],[77,4,78,4],[77,5,78,5],[77,6,78,6],[77,7,78,7],[78,8,78,9],[78,11,78,12],[74,5,75,5],[74,6,75,6],[74,7,75,7],[75,8,75,9]]}
["add_COMMENTS_range","лист Комментарий"]
[]
["add_TYPE_range","лист Показатели"]
[null,null,null,null,null,null,"тыс. руб."]
["add_IDEX_range","лист Показатели"]
[null,null,null,null,null,null,"тыс. руб."]
["add_FUEL_range"]
[null,null,null,null,null,{"$f":"F9*F10+F11","v":0}]
[null,null,null,null,{"$f":"D8 & \".1 Стоимость за единицу объема\"","v":".1 Стоимость за единицу объема"}]
[null,null,null,null,{"$f":"D8 & \".2 Объем\"","v":".2 Объем"},null,"тыс. руб."]
[null,null,null,null,{"$f":"D8 & \".3 Стоимость доставки\"","v":".3 Стоимость доставки"},null,"тыс. руб."]
[null,null,null,null,{"$f":"D8 & \".4 Способ приобретения\"","v":".4 Способ приобретения"}]
["add_PROVIDER_range"]
[null,null,null,1,null,"Итого поставщику:",null,null,null,null,null,null,null,null,{"$f":"SUM(O15:O17)","v":0},{"$f":"IFERROR(O14/List11_RepairCosts,0)*100","v":0}]
[null,null,null,null,null,null,"1",null,null,null,"1"]
[null,null,null,null,null,null,null,null,null,null,null,"Добавить товар(услугу)",null,null,null,null,null,null,null,null,null,null,null,"add_PRODUCT_range"]
[null,null,null,null,null,null,null,"Добавить способ",null,null,null,null,null,null,null,null,null,null,null,"add_METHOD_range"]
[]
["add_PROVIDER2_range"]
[null,null,null,1,null,"Итого поставщику:",null,null,null,null,null,null,null,null,{"$f":"SUM(O21:O23)","v":0},{"$f":"IFERROR(O20/List11_ProductionCosts,0)*100","v":0}]
[null,null,null,null,null,null,"1",null,null,null,"1"]
[null,null,null,null,null,null,null,null,null,null,null,"Добавить товар(услугу)",null,null,null,null,null,null,null,null,null,null,null,"add_PRODUCT_range"]
[null,null,null,null,null,null,null,"Добавить способ",null,null,null,null,null,null,null,null,null,null,null,"add_METHOD_range"]
[]
[]
[]
["add_TERRITORY_range"]
[null,null,null,null,null,null,"1",null,null,null,"1"]
[null,null,null,null,null,null,null,null,null,null,null,"Добавить товар(услугу)",null,null,null,null,null,null,null,null,null,null,null,null,null,null,"add_PRODUCT_range"]
["add_METHOD_range"]
[null,null,null,null,null,null,"1",null,null,null,"1"]
[null,null,null,null,null,null,null,null,null,null,null,"Добавить товар(услугу)",null,null,null,null,null,null,null,null,null,null,null,"add_PRODUCT_range"]
["add_PRODUCT_range"]
[null,null,null,null,null,null,null,null,null,null,"1"]
["add_EVENT_range"]
[null,null,null,1,null,null,null,null,1,null,"Потребности в финансовых средствах, необходимых для реализации инвестиционной программы",null,1,null,null,"тыс. руб."]
[null,null,null,null,null,null,null,null,null,null,null,null,null,"Добавить год",null,null,null,null,null,null,null,null,null,null,null,"add_YEAR_range"]
[null,null,null,null,null,null,null,null,null,null,"Использование инвестиционных средств за отчетный год","I квартал",null,null,null,"тыс. руб."]
[null,null,null,null,null,null,null,null,null,null,null,"II квартал",null,null,null,"тыс. руб."]
[null,null,null,null,null,null,null,null,null,null,null,"III квартал",null,null,null,"тыс. руб."]
[null,null,null,null,null,null,null,null,null,null,null,"IV квартал",null,null,null,"тыс. руб."]
[null,null,null,null,null,null,null,null,null,"Добавить источник",null,null,null,null,null,null,null,null,null,null,null,"add_SOURCE_range"]
[null,null,null,null,null,null,null,null,1,"Целевой показатель инвестиционной программы:",null,"Плановое значение"]
[null,null,null,null,null,null,null,null,null,null,null,"Фактическое значение"]
[null,null,null,null,null,null,null,null,null,"Добавить показатель",null,null,null,null,null,null,null,null,null,null,null,"add_INVEST_INDEX_range"]
["add_SOURCE_range"]
[null,null,null,null,null,null,null,null,1,null,"Потребности в финансовых средствах, необходимых для реализации инвестиционной программы",null,1,null,null,"тыс. руб."]
[null,null,null,null,null,null,null,null,null,null,null,null,null,"Добавить год",null,null,null,null,null,null,null,null,null,null,null,"add_YEAR_range"]
[null,null,null,null,null,null,null,null,null,null,"Использование инвестиционных средств за отчетный год","I квартал",null,null,null,"тыс. руб."]
[null,null,null,null,null,null,null,null,null,null,null,"II квартал",null,null,null,"тыс. руб."]
[null,null,null,null,null,null,null,null,null,null,null,"III квартал",null,null,null,"тыс. руб."]
[null,null,null,null,null,null,null,null,null,null,null,"IV квартал",null,null,null,"тыс. руб."]
["add_YEAR_range"]
[null,null,null,null,null,null,null,null,null,null,null,null,1,null,null,"тыс. руб."]
["add_INVEST_INDEX_range"]
[null,null,null,null,null,null,null,null,1,"Целевой показатель инвестиционной программы:",null,"Плановое значение"]
[null,null,null,null,null,null,null,null,null,null,null,"Фактическое значение"]
["add_INFO_range"]
[]
["add_PUBLIC_range"]
[]
[null,null,null,null,"Сайт организации в сети Интернет",null,null,"х","х"]
[null,null,null,null,"Печатное издание",null,null,null,null,null,"FHD"]
["add_IDEX_GCAL_range"]
[null,null,null,null,null,null,"Гкал/ч"]
["add_IDEX_KG_range","лист Показатели"]
[null,null,null,null,null,null,"%"]
[]
["add_CASE_range"]
[]
[]
["add_MO_range"]
[null,null,null,"1","МР",null,null,null,"МО",null,1,null,null,null,null,null,null,null,null,null,null,null,null,null,null,null,null,1]
["add_MR_range"]
[null,null,null,"1","МР",null,1,null,"МО",null,1,null,null,null,null,null,null,null,null,null,null,null,null,null,null,null,null,1]
[null,null,null,null,null,null,null,null,null,null,null,"Добавить МО",null,null,null,null,null,null,null,null,null,null,null,null,null,null,null,null,null,null,null,null,null,null,"add_MO_range"]
["add_T_range"]
[null,null,null,null,"МР",null,1,null,"МО",null,1]
[null,null,null,null,null,null,null,null,null,null,null,"Добавить МО",null,null,null,null,null,null,null,null,null,null,null,null,null,null,null,null,null,null,null,null,null,null,"add_MO_range"]
[null,null,null,null,null,null,null,"Добавить ГО / МР",null,null,null,null,null,null,null,null,null,null,null,null,null,null,null,null,null,null,null,null,null,null,"add_MR_range"]

{"sheet":"Reference","index":15,"n_rows":13,"n_cols":6,"rows_kept":13,"cut":false,"hidden":true,"merged":[]}
["http://92.242.46.82/UserFile/Download?guid=","Да/нет\n(BOOL)","Тип отчета","Единица измерения \n(UNIT)","Источник финансирования\nfinancial source","Вид деятельности\nType_Activity"]
[null,"да","Первичное раскрытие информации","тыс. кВт.ч","федеральный бюджет","Холодное водоснабжение, в т.ч. подвоз воды"]
[null,"нет","Корректировка ранее раскрытой информации","тыс. куб.м.","бюджет субъекта РФ","Холодное водоснабжение, в т.ч. транспортировка воды, включая распределение воды"]
[null,null,"Изменения в раскрытой информации",null,"бюджет муниципального образования","Подключение (технологическое присоединение) к централизованной системе водоснабжения"]
[null,null,null,null,"средства внебюджетных фондов"]
[null,null,null,null,"кредиты банков"]
[null,null,null,null,"кредиты иностранных банков"]
[null,null,null,null,"заемные средства других организаций"]
[null,null,null,null,"прибыль, направляемая на инвестиции"]
[null,null,null,null,"амортизация"]
[null,null,null,null,"инвестиционная надбавка к тарифу"]
[null,null,null,null,"плата за подключение"]
[null,null,null,null,"прочие средства"]

{"sheet":"RegistryMunicipal","index":16,"n_rows":896,"n_cols":7,"rows_kept":896,"cut":false,"hidden":true,"merged":[]}
["MO1","МО1_ОКТМО","ИМЯ ДИАПАЗОНА",null,"MO1","MO2","МО2_ОКТМО"]
["Абзелиловский муниципальный район","80601000","MO_LIST_2",null,"Абзелиловский муниципальный район"," Все муниципальные образования","80601000"]
["Альшеевский муниципальный район","80602000","MO_LIST_3",null,"Абзелиловский муниципальный район","Альмухаметовский сельский совет","80601404"]
["Архангельский муниципальный район","80603000","MO_LIST_4",null,"Абзелиловский муниципальный район","Амангильдинский сельский совет","80601407"]
["Аскинский муниципальный район","80604000","MO_LIST_5",null,"Абзелиловский муниципальный район","Аскаровский сельский совет","80601410"]
["Аургазинский муниципальный район","80605000","MO_LIST_6",null,"Абзелиловский муниципальный район","Баимовский сельский совет","80601413"]
["Баймакский муниципальный район","80606000","MO_LIST_7",null,"Абзелиловский муниципальный район","Бурангуловский сельский совет","80601416"]
["Бакалинский муниципальный район","80607000","MO_LIST_8",null,"Абзелиловский муниципальный район","Гусевский сельский совет","80601419"]
["Балтачевский муниципальный район","80608000","MO_LIST_9",null,"Абзелиловский муниципальный район","Давлетовский сельский совет","80601422"]
["Белебеевский муниципальный район","80609000","MO_LIST_10",null,"Абзелиловский муниципальный район","Кирдасовский сельский совет","80601425"]
["Белокатайский муниципальный район","80610000","MR_LIST_11",null,"Абзелиловский муниципальный район","Краснобашкирский сельский совет","80601428"]
["Белорецкий муниципальный район","80611000","MO_LIST_12",null,"Абзелиловский муниципальный район","Равиловский сельский совет","80601431"]
["Бижбулякский муниципальный район","80612000","MO_LIST_13",null,"Абзелиловский муниципальный район","Ташбулатовский сельский совет","80601434"]
["Бирский муниципальный район","80613000","MO_LIST_14",null,"Абзелиловский муниципальный район","Таштимеровский сельский совет","80601437"]
["Благоварский муниципальный район","80614000","MO_LIST_15",null,"Абзелиловский муниципальный район","Халиловский сельский совет","80601440"]
["Благовещенский муниципальный район","80615000","MO_LIST_16",null,"Абзелиловский муниципальный район","Хамитовский сельский совет","80601443"]
["Буздякский муниципальный район","80617000","MO_LIST_17",null,"Абзелиловский муниципальный район","Янгильский сельский совет","80601446"]
["Бураевский муниципальный район","80618000","MO_LIST_18",null,"Альшеевский муниципальный район"," Все муниципальные образования","80602000"]
["Бурзянский муниципальный район","80619000","MO_LIST_19",null,"Альшеевский муниципальный район","Абдрашитовский сельский совет","80602404"]
["Гафурийский муниципальный район","80621000","MO_LIST_20",null,"Альшеевский муниципальный район","Аксеновский сельский совет","80602406"]
["Город Агидель","80703000","MO_LIST_21",null,"Альшеевский муниципальный район","Воздвиженский сельский совет","80602413"]
["Город Кумертау","80723000","MO_LIST_22",null,"Альшеевский муниципальный район","Гайниямакский сельский совет","80602416"]
["Город Нефтекамск","80727000","MO_LIST_23",null,"Альшеевский муниципальный район","Зеленоклиновский сельский совет","80602418"]
["Город Октябрьский","80735000","MO_LIST_24",null,"Альшеевский муниципальный район","Ибраевский сельский совет","80602419"]
["Город Салават","80739000","MO_LIST_25",null,"Альшеевский муниципальный район","Казанский сельский совет","80602422"]
["Город Сибай","80743000","MO_LIST_26",null,"Альшеевский муниципальный район","Кармышевский сельский совет","80602428"]
["Город Стерлитамак","80745000","MO_LIST_27",null,"Альшеевский муниципальный район","Кипчак-Аскаровский сельский совет","80602431"]
["Город Уфа","80701000","MO_LIST_28",null,"Альшеевский муниципальный район","Кызыльский сельский совет","80602437"]
["Давлекановский муниципальный район","80622000","MO_LIST_29",null,"Альшеевский муниципальный район","Мендяновский сельский совет","80602440"]
["Дуванский муниципальный район","80623000","MO_LIST_30",null,"Альшеевский муниципальный район","Нигматуллинский сельский совет","80602443"]
["Дюртюлинский муниципальный район","80624000","MO_LIST_31",null,"Альшеевский муниципальный район","Нижнеаврюзовский сельский совет","80602446"]
["Ермекеевский муниципальный район","80625000\n","MO_LIST_32",null,"Альшеевский муниципальный район","Никифаровский сельский совет","80602449"]
["ЗАТО город Межгорье","80707000","MO_LIST_33",null,"Альшеевский муниципальный район","Раевский сельский совет","80602451"]
["Зианчуринский муниципальный район","80626000","MO_LIST_34",null,"Альшеевский муниципальный район","Слаковский сельский совет","80602455"]
["Зилаирский муниципальный район","80627000","MO_LIST_35",null,"Альшеевский муниципальный район","Ташлинский сельский совет","80602458"]
["Иглинский муниципальный район","80628000","MO_LIST_36",null,"Альшеевский муниципальный район","Трунтаишевский сельский совет","80602461"]
["Илишевский муниципальный район","80630000","MO_LIST_37",null,"Альшеевский муниципальный район","Чебенлинский сельский совет","80602464"]
["Ишимбайский муниципальный район","80631000","MO_LIST_38",null,"Альшеевский муниципальный район","Шафрановский сельский совет","80602470"]
["Калтасинский муниципальный район","80633000","MO_LIST_39",null,"Архангельский муниципальный район"," Все муниципальные образования","80603000"]
["Караидельский муниципальный район","80634000","MO_LIST_40",null,"Архангельский муниципальный район","Абзановский сельский совет","80603404"]
["Кармаскалинский муниципальный район","80635000","MO_LIST_41",null,"Архангельский муниципальный район","Архангельский сельский совет","80603410"]
["Кигинский муниципальный район","80636000","MO_LIST_42",null,"Архангельский муниципальный район","Арх-Латышский сельский совет","80603413"]
["Краснокамский муниципальный район","80637000","MO_LIST_43",null,"Архангельский муниципальный район","Бакалдинский сельский совет","80603416"]
["Кугарчинский муниципальный район","80638000","MO_LIST_44",null,"Архангельский муниципальный район","Инзерский сельский совет","80603419"]
["Кушнаренковский муниципальный район","80640000","MO_LIST_45",null,"Архангельский муниципальный район","Ирныкшинский сельский совет","80603422"]
["Куюргазинский муниципальный район","80639000","MO_LIST_46",null,"Архангельский муниципальный район","Краснозилимский сельский совет","80603425"]
["Мелеузовский муниципальный район","80641000","MO_LIST_47",null,"Архангельский муниципальный район","Краснокуртовский сельский совет","80603428"]
["Мечетлинский муниципальный район","80642000","MO_LIST_48",null,"Архангельский муниципальный район","Липовский сельский совет","80603434"]
["Мишкинский муниципальный район","80643000","MO_LIST_49",null,"Архангельский муниципальный район","Орловский сельский совет","80603440"]
["Миякинский муниципальный район","80644000","MO_LIST_50",null,"Архангельский муниципальный район","Тавакачевский сельский совет","80603446"]
["Нуримановский муниципальный район","80645000","MO_LIST_51",null,"Архангельский муниципальный район","Узунларовский сельский совет","80603450"]
["Салаватский муниципальный район","80647000","MO_LIST_52",null,"Аскинский муниципальный район"," Все муниципальные образования","80604000"]
["Стерлибашевский муниципальный район","80648000","MO_LIST_53",null,"Аскинский муниципальный район","Арбашевский сельский совет","80604402"]
["Стерлитамакский муниципальный район","80649000","MO_LIST_54",null,"Аскинский муниципальный район","Аскинский сельский совет","80604404"]
["Татышлинский муниципальный район","80650000","MO_LIST_55",null,"Аскинский муниципальный район","Евбулякский сельский совет","80604413"]
["Туймазинский муниципальный район","80651000","MO_LIST_56",null,"Аскинский муниципальный район","Казанчинский сельский совет","80604416"]
["Уфимский муниципальный район","80652000","MO_LIST_57",null,"Аскинский муниципальный район","Карткисяковский сельский совет","80604418"]
["Учалинский муниципальный район","80653000","MO_LIST_58",null,"Аскинский муниципальный район","Кашкинский сельский совет","80604419"]
["Федоровский муниципальный район","80654000","MO_LIST_59",null,"Аскинский муниципальный район","Ключевский сельский совет","80604425"]
["Хайбуллинский муниципальный район","80655000","MO_LIST_60",null,"Аскинский муниципальный район","Кубиязовский сельский совет","80604428"]
["Чекмагушевский муниципальный район","80656000","MO_LIST_61",null,"Аскинский муниципальный район","Кунгаковский сельский совет","80604431"]
["Чишминский муниципальный район","80657000","MO_LIST_62",null,"Аскинский муниципальный район","Кшлау-Елгинский сельский совет","80604437"]
["Шаранский муниципальный район","80658000","MO_LIST_63",null,"Аскинский муниципальный район","Мутабашевский сельский совет","80604440"]
["Янаульский муниципальный район","80659000","MO_LIST_64",null,"Аскинский муниципальный район","Петропавловский сельский совет","80604442"]
[null,null,null,null,"Аскинский муниципальный район","Султанбековский сельский совет","80604443"]
[null,null,null,null,"Аскинский муниципальный район","Урмиязовский сельский совет","80604446"]
[null,null,null,null,"Аскинский муниципальный район","Усть-Табасский сельский совет","80604450"]
[null,null,null,null,"Аургазинский муниципальный район"," Все муниципальные образования","80605000"]
[null,null,null,null,"Аургазинский муниципальный район","Балыклыкульский сельский совет","80605402"]
[null,null,null,null,"Аургазинский муниципальный район","Батыровский сельский совет","80605404"]
[null,null,null,null,"Аургазинский муниципальный район","Бишкаинский сельский совет","80605407"]
[null,null,null,null,"Аургазинский муниципальный район","Ибраевский сельский совет","80605410"]
[null,null,null,null,"Аургазинский муниципальный район","Исмагиловский сельский совет","80605413"]
[null,null,null,null,"Аургазинский муниципальный район","Ишлинский сельский совет","80605416"]
[null,null,null,null,"Аургазинский муниципальный район","Кебячевский сельский совет","80605419"]
[null,null,null,null,"Аургазинский муниципальный район","Меселинский сельский совет","80605422"]
[null,null,null,null,"Аургазинский муниципальный район","Михайловский сельский совет","80605425"]
[null,null,null,null,"Аургазинский муниципальный район","Нагадакский сельский совет","80605428"]
[null,null,null,null,"Аургазинский муниципальный район","Новокальчировский сельский совет","80605431"]
[null,null,null,null,"Аургазинский муниципальный район","Семенкинский сельский совет","80605434"]
[null,null,null,null,"Аургазинский муниципальный район","Степановский сельский совет","80605437"]
[null,null,null,null,"Аургазинский муниципальный район","Султанмуратовский сельский совет","80605440"]
[null,null,null,null,"Аургазинский муниципальный район","Таштамакский сельский совет","80605443"]
[null,null,null,null,"Аургазинский муниципальный район","Толбазинский сельский совет","80605446"]
[null,null,null,null,"Аургазинский муниципальный район","Тряпинский сельский совет","80605449"]
[null,null,null,null,"Аургазинский муниципальный район","Тукаевский сельский совет","80605452"]
[null,null,null,null,"Аургазинский муниципальный район","Турумбетовский сельский совет","80605458"]
[null,null,null,null,"Аургазинский муниципальный район","Уршакский сельский совет","80605461"]
[null,null,null,null,"Аургазинский муниципальный район","Чуваш-Карамалинский сельский совет","80605472"]
[null,null,null,null,"Баймакский муниципальный район"," Все муниципальные образования","80606000"]
[null,null,null,null,"Баймакский муниципальный район","1-й Иткуловский сельский совет","80606416"]
[null,null,null,null,"Баймакский муниципальный район","Абдулкаримовский сельский совет","80606404"]
[null,null,null,null,"Баймакский муниципальный район","Акмурунский сельский совет","80606407"]
[null,null,null,null,"Баймакский муниципальный район","Бекешевский сельский совет","80606409"]
[null,null,null,null,"Баймакский муниципальный район","Биляловский сельский совет","80606410"]
[null,null,null,null,"Баймакский муниципальный район","Город Баймак","80606101"]
[null,null,null,null,"Баймакский муниципальный район","Зилаирский сельский совет","80606413"]
[null,null,null,null,"Баймакский муниципальный район","Ишбердинский сельский совет","80606428"]
[null,null,null,null,"Баймакский муниципальный район","Ишмурзинский сельский совет","80606422"]
[null,null,null,null,"Баймакский муниципальный район","Ишмухаметовский сельский совет","80606425"]
[null,null,null,null,"Баймакский муниципальный район","Кульчуровский сельский совет","80606437"]
[null,null,null,null,"Баймакский муниципальный район","Кусеевский сельский совет","80606431"]
[null,null,null,null,"Баймакский муниципальный район","Мерясовский сельский совет","80606438"]
[null,null,null,null,"Баймакский муниципальный район","Мукасовский сельский совет","80606434"]
[null,null,null,null,"Баймакский муниципальный район","Нигаматовский сельский совет","80606440"]
[null,null,null,null,"Баймакский муниципальный район","Семеновский сельский совет","80606442"]
[null,null,null,null,"Баймакский муниципальный район","Сибайский сельский совет","80606443"]
[null,null,null,null,"Баймакский муниципальный район","Тавлыкаевский сельский совет","80606446"]
[null,null,null,null,"Баймакский муниципальный район","Татлыбаевский сельский совет","80606449"]
[null,null,null,null,"Баймакский муниципальный район","Темясовский сельский совет","80606452"]
[null,null,null,null,"Баймакский муниципальный район","Тубинский сельский совет","80606453"]
[null,null,null,null,"Баймакский муниципальный район","Юмашевский сельский совет","80606455"]
[null,null,null,null,"Баймакский муниципальный район","Яратовский сельский совет","80606459"]
[null,null,null,null,"Бакалинский муниципальный район"," Все муниципальные образования","80607000"]
[null,null,null,null,"Бакалинский муниципальный район","Ахмановский сельский совет","80607404"]
[null,null,null,null,"Бакалинский муниципальный район","Бакалинский сельский совет","80607407"]
[null,null,null,null,"Бакалинский муниципальный район","Бузюровский сельский совет","80607413"]
[null,null,null,null,"Бакалинский муниципальный район","Дияшевский сельский совет","80607419"]
[null,null,null,null,"Бакалинский муниципальный район","Камышлытамакский сельский совет","80607425"]
[null,null,null,null,"Бакалинский муниципальный район","Килеевский сельский совет","80607428"]
[null,null,null,null,"Бакалинский муниципальный район","Куштиряковский сельский совет","80607431"]
[null,null,null,null,"Бакалинский муниципальный район","Михайловский сельский совет","80607410"]
[null,null,null,null,"Бакалинский муниципальный район","Мустафинский сельский совет","80607434"]
[null,null,null,null,"Бакалинский муниципальный район","Новокатаевский сельский совет","80607440"]
[null,null,null,null,"Бакалинский муниципальный район","Новоурсаевский сельский совет","80607446"]
[null,null,null,null,"Бакалинский муниципальный район","Старокостеевский сельский совет","80607451"]
[null,null,null,null,"Бакалинский муниципальный район","Старокуручевский сельский совет","80607449"]
[null,null,null,null,"Бакалинский муниципальный район","Староматинский сельский совет","80607455"]
[null,null,null,null,"Бакалинский муниципальный район","Старошарашлинский сельский совет","80607458"]
[null,null,null,null,"Бакалинский муниципальный район","Тактагуловский сельский совет","80607461"]
[null,null,null,null,"Бакалинский муниципальный район","Урманаевский сельский совет","80607464"]
[null,null,null,null,"Балтачевский муниципальный район"," Все муниципальные образования","80608000"]
[null,null,null,null,"Балтачевский муниципальный район","Богдановский сельский совет","80608404"]
[null,null,null,null,"Балтачевский муниципальный район","Верхнеянактаевский сельский совет","80608407"]
[null,null,null,null,"Балтачевский муниципальный район","Кундашлинский сельский совет","80608413"]
[null,null,null,null,"Балтачевский муниципальный район","Кунтугушевский сельский совет","80608416"]
[null,null,null,null,"Балтачевский муниципальный район","Нижнекарышевский сельский совет","80608419"]
[null,null,null,null,"Балтачевский муниципальный район","Нижнесикиязовский сельский совет","80608422"]
[null,null,null,null,"Балтачевский муниципальный район","Норкинский сельский совет","80608425"]
[null,null,null,null,"Балтачевский муниципальный район","Сейтяковский сельский совет","80608428"]
[null,null,null,null,"Балтачевский муниципальный район","Старобалтачевский сельский совет","80608431"]
[null,null,null,null,"Балтачевский муниципальный район","Староянбаевский сельский совет","80608434"]
[null,null,null,null,"Балтачевский муниципальный район","Тошкуровский сельский совет","80608437"]
[null,null,null,null,"Балтачевский муниципальный район","Тучубаевский сельский совет","80608440"]
[null,null,null,null,"Балтачевский муниципальный район","Шавьядинский сельский совет","80608441"]
[null,null,null,null,"Балтачевский муниципальный район","Штандинский сельский совет","80608443"]
[null,null,null,null,"Балтачевский муниципальный район","Ялангачевский сельский совет","80608448"]
[null,null,null,null,"Белебеевский муниципальный район"," Все муниципальные образования","80609000"]
[null,null,null,null,"Белебеевский муниципальный район","Аксаковский сельский совет","80609401"]
[null,null,null,null,"Белебеевский муниципальный район","Анновский сельский совет","80609413"]
[null,null,null,null,"Белебеевский муниципальный район","Баженовский сельский совет","80609402"]
[null,null,null,null,"Белебеевский муниципальный район","Город Белебей","80609101"]
[null,null,null,null,"Белебеевский муниципальный район","Донской сельский совет","80609404"]
[null,null,null,null,"Белебеевский муниципальный район","Ермолкинский сельский совет","80609407"]
[null,null,null,null,"Белебеевский муниципальный район","Знаменский сельский совет","80609410"]
[null,null,null,null,"Белебеевский муниципальный район","Максим-Горьковский сельский совет","80609416"]
[null,null,null,null,"Белебеевский муниципальный район","Малиновский сельский совет","80609419"]
[null,null,null,null,"Белебеевский муниципальный район","Метевбашевский сельский совет","80609425"]
[null,null,null,null,"Белебеевский муниципальный район","Приютовский поссовет","80609165"]
[null,null,null,null,"Белебеевский муниципальный район","Рассветовский сельский совет","80609428"]
[null,null,null,null,"Белебеевский муниципальный район","Семенкинский сельский совет","80609431"]
[null,null,null,null,"Белебеевский муниципальный район","Слакбашевский сельский совет","80609434"]
[null,null,null,null,"Белебеевский муниципальный район","Тузлукушевский сельский совет","80609437"]
[null,null,null,null,"Белебеевский муниципальный район","Усень-Ивановский сельский совет","80609440"]
[null,null,null,null,"Белебеевский муниципальный район","Шаровский сельский совет","80609443"]
[null,null,null,null,"Белокатайский муниципальный район"," Все муниципальные образования","80610000"]
[null,null,null,null,"Белокатайский муниципальный район","Атаршинский сельский совет","80610402"]
[null,null,null,null,"Белокатайский муниципальный район","Белянковский сельский совет","80610404"]
[null,null,null,null,"Белокатайский муниципальный район","Емашинский сельский совет","80610407"]
[null,null,null,null,"Белокатайский муниципальный район","Карлыхановский сельский совет","80610413"]
[null,null,null,null,"Белокатайский муниципальный район","Майгазинский сельский совет","80610416"]
[null,null,null,null,"Белокатайский муниципальный район","Нижнеискушинский сельский совет","80610419"]
[null,null,null,null,"Белокатайский муниципальный район","Новобелокатайский сельский совет","80610422"]
[null,null,null,null,"Белокатайский муниципальный район","Ногушинский сельский совет","80610425"]
[null,null,null,null,"Белокатайский муниципальный район","Старобелокатайский сельский совет","80610428"]
[null,null,null,null,"Белокатайский муниципальный район","Тардавский сельский совет","80610431"]
[null,null,null,null,"Белокатайский муниципальный район","Ургалинский сельский совет","80610434"]
[null,null,null,null,"Белокатайский муниципальный район","Утяшевский сельский совет","80610437"]
[null,null,null,null,"Белокатайский муниципальный район","Яныбаевский сельский совет","80610440"]
[null,null,null,null,"Белорецкий муниципальный район"," Все муниципальные образования","80611000"]
[null,null,null,null,"Белорецкий муниципальный район","Абзаковский сельский совет","80611404"]
[null,null,null,null,"Белорецкий муниципальный район","Азикеевский сельский совет","80611407"]
[null,null,null,null,"Белорецкий муниципальный район","Ассинский сельский совет","80611410"]
[null,null,null,null,"Белорецкий муниципальный район","Верхнеавзянский сельский совет","80611415"]
[null,null,null,null,"Белорецкий муниципальный район","Город Белорецк","80611101"]
[null,null,null,null,"Белорецкий муниципальный район","Железнодорожный сельский совет","80611418"]
[null,null,null,null,"Белорецкий муниципальный район","Зигазинский сельский совет","80611416"]
[null,null,null,null,"Белорецкий муниципальный район","Зуяковский сельский совет","80611417"]
[null,null,null,null,"Белорецкий муниципальный район","Инзерский сельский совет","80611420"]
[null,null,null,null,"Белорецкий муниципальный район","Ишлинский сельский совет","80611422"]
[null,null,null,null,"Белорецкий муниципальный район","Кагинский сельский совет","80611425"]
[null,null,null,null,"Белорецкий муниципальный район","Ломовский сельский совет","80611427"]
[null,null,null,null,"Белорецкий муниципальный район","Николаевский сельский совет","80611434"]
[null,null,null,null,"Белорецкий муниципальный район","Нурский сельский совет","80611440"]
[null,null,null,null,"Белорецкий муниципальный район","Серменевский сельский совет","80611443"]
[null,null,null,null,"Белорецкий муниципальный район","Сосновский сельский совет","80611446"]
[null,null,null,null,"Белорецкий муниципальный район","Тирлянский сельский совет","80611448"]
[null,null,null,null,"Белорецкий муниципальный район","Туканский сельский совет","80611449"]
[null,null,null,null,"Белорецкий муниципальный район","Узянский сельский совет","80611452"]
[null,null,null,null,"Белорецкий муниципальный район","Шигаевский сельский совет","80611455"]
[null,null,null,null,"Бижбулякский муниципальный район"," Все муниципальные образования","80612000"]
[null,null,null,null,"Бижбулякский муниципальный район","Аитовский сельский совет","80612404"]
[null,null,null,null,"Бижбулякский муниципальный район","Базлыкский сельский совет","80612407"]
[null,null,null,null,"Бижбулякский муниципальный район","Бижбулякский сельский совет","80612410"]
[null,null,null,null,"Бижбулякский муниципальный район","Биккуловский сельский совет","80612413"]
[null,null,null,null,"Бижбулякский муниципальный район","Демский сельский совет","80612416"]
[null,null,null,null,"Бижбулякский муниципальный район","Елбулактамакский сельский совет","80612419"]
[null,null,null,null,"Бижбулякский муниципальный район","Зириклинский сельский совет","80612422"]
[null,null,null,null,"Бижбулякский муниципальный район","Калининский сельский совет","80612425"]
[null,null,null,null,"Бижбулякский муниципальный район","Каменский сельский совет","80612428"]
[null,null,null,null,"Бижбулякский муниципальный район","Кенгер-Менеузовский сельский совет","80612431"]
[null,null,null,null,"Бижбулякский муниципальный район","Кош-Елгинский сельский совет","80612440"]
[null,null,null,null,"Бижбулякский муниципальный район","Михайловский сельский совет","80612442"]
[null,null,null,null,"Бижбулякский муниципальный район","Сухореченский сельский совет","80612443"]
[null,null,null,null,"Бирский муниципальный район"," Все муниципальные образования","80613000"]
[null,null,null,null,"Бирский муниципальный район","Бахтыбаевский сельский совет","80613407"]
[null,null,null,null,"Бирский муниципальный район","Березовский сельский совет","80613409"]
[null,null,null,null,"Бирский муниципальный район","Бурновский сельский совет","80613408"]
[null,null,null,null,"Бирский муниципальный район","Верхнелачентауский сельский совет","80613410"]
[null,null,null,null,"Бирский муниципальный район","Город Бирск","80613101"]
[null,null,null,null,"Бирский муниципальный район","Калинниковский сельский совет","80613416"]
[null,null,null,null,"Бирский муниципальный район","Кусекеевский сельский совет","80613419"]
[null,null,null,null,"Бирский муниципальный район","Маядыковский сельский совет","80613422"]
[null,null,null,null,"Бирский муниципальный район","Осиновский сельский совет","80613425"]
[null,null,null,null,"Бирский муниципальный район","Силантьевский сельский совет","80613431"]
[null,null,null,null,"Бирский муниципальный район","Старобазановский сельский совет","80613434"]
[null,null,null,null,"Бирский муниципальный район","Старопетровский сельский совет","80613437"]
[null,null,null,null,"Бирский муниципальный район","Сусловский сельский совет","80613440"]
[null,null,null,null,"Бирский муниципальный район","Угузевский сельский совет","80613443"]
[null,null,null,null,"Бирский муниципальный район","Чишминский сельский совет","80613446"]
[null,null,null,null,"Благоварский муниципальный район"," Все муниципальные образования","80614000"]
[null,null,null,null,"Благоварский муниципальный район","Алексеевский сельский совет","80614404"]
[null,null,null,null,"Благоварский муниципальный район","Балышлинский сельский совет","80614407"]
[null,null,null,null,"Благоварский муниципальный район","Благоварский сельский совет","80614410"]
[null,null,null,null,"Благоварский муниципальный район","Дмитриевский сельский совет","80614413"]
[null,null,null,null,"Благоварский муниципальный район","Каргалинский сельский совет","80614416"]
[null,null,null,null,"Благоварский муниципальный район","Кашкалашинский сельский совет","80614419"]
[null,null,null,null,"Благоварский муниципальный район","Кучербаевский сельский совет","80614422"]
[null,null,null,null,"Благоварский муниципальный район","Мирновский сельский совет","80614423"]
[null,null,null,null,"Благоварский муниципальный район","Первомайский сельский совет","80614424"]
[null,null,null,null,"Благоварский муниципальный район","Тановский сельский совет","80614428"]
[null,null,null,null,"Благоварский муниципальный район","Троицкий сельский совет","80614431"]
[null,null,null,null,"Благоварский муниципальный район","Удрякбашевский сельский совет","80614434"]
[null,null,null,null,"Благоварский муниципальный район","Языковский сельский совет","80614437"]
[null,null,null,null,"Благоварский муниципальный район","Ямакаевский сельский совет","80614440"]
[null,null,null,null,"Благоварский муниципальный район","Янышевский сельский совет","80614443"]
[null,null,null,null,"Благовещенский муниципальный район"," Все муниципальные образования","80615000"]
[null,null,null,null,"Благовещенский муниципальный район","Бедеево-Полянский сельский совет","80615404"]
[null,null,null,null,"Благовещенский муниципальный район","Богородский сельский совет","80615407"]
[null,null,null,null,"Благовещенский муниципальный район","Волковский сельский совет","80615413"]
[null,null,null,null,"Благовещенский муниципальный район","Город Благовещенск","80615101"]
[null,null,null,null,"Благовещенский муниципальный район","Изяковский сельский совет","80615419"]
[null,null,null,null,"Благовещенский муниципальный район","Иликовский сельский совет","80615422"]
[null,null,null,null,"Благовещенский муниципальный район","Ильино-Полянский сельский совет","80615425"]
[null,null,null,null,"Благовещенский муниципальный район","Николаевский сельский совет","80615428"]
[null,null,null,null,"Благовещенский муниципальный район","Новонадеждинский сельский совет","80615431"]
[null,null,null,null,"Благовещенский муниципальный район","Октябрьский сельский совет","80615434"]
[null,null,null,null,"Благовещенский муниципальный район","Орловский сельский совет","80615437"]
[null,null,null,null,"Благовещенский муниципальный район","Покровский сельский совет","80615440"]
[null,null,null,null,"Благовещенский муниципальный район","Саннинский сельский совет","80615443"]
[null,null,null,null,"Благовещенский муниципальный район","Старонадеждинский сельский совет","80615449"]
[null,null,null,null,"Благовещенский муниципальный район","Тугайский сельский совет","80615453"]
[null,null,null,null,"Благовещенский муниципальный район","Удельно-Дуванейский сельский совет","80615461"]
[null,null,null,null,"Буздякский муниципальный район"," Все муниципальные образования","80617000"]
[null,null,null,null,"Буздякский муниципальный район","Арслановский сельский совет","80617404"]
[null,null,null,null,"Буздякский муниципальный район","Буздякский сельский совет","80617407"]
[null,null,null,null,"Буздякский муниципальный район","Гафурийский сельский совет","80617410"]
[null,null,null,null,"Буздякский муниципальный район","Канлы-Туркеевский сельский совет","80617413"]
[null,null,null,null,"Буздякский муниципальный район","Каранский сельский совет","80617416"]
[null,null,null,null,"Буздякский муниципальный район","Килимовский сельский совет","80617419"]
[null,null,null,null,"Буздякский муниципальный район","Копей-Кубовский сельский совет","80617422"]
[null,null,null,null,"Буздякский муниципальный район","Кузеевский сельский совет","80617425"]
[null,null,null,null,"Буздякский муниципальный район","Сабаевский сельский совет","80617431"]
[null,null,null,null,"Буздякский муниципальный район","Тавларовский сельский совет","80617437"]
[null,null,null,null,"Буздякский муниципальный район","Тюрюшевский сельский совет","80617440"]
[null,null,null,null,"Буздякский муниципальный район","Уртакульский сельский совет","80617446"]
[null,null,null,null,"Бураевский муниципальный район"," Все муниципальные образования","80618000"]
[null,null,null,null,"Бураевский муниципальный район","Азяковский сельский совет","80618404"]
[null,null,null,null,"Бураевский муниципальный район","Бадраковский сельский совет","80618407"]
[null,null,null,null,"Бураевский муниципальный район","Бураевский сельский совет","80618413"]
[null,null,null,null,"Бураевский муниципальный район","Ванышевский сельский совет","80618416"]
[null,null,null,null,"Бураевский муниципальный район","Вострецовский сельский совет","80618419"]
[null,null,null,null,"Бураевский муниципальный район","Каинлыковский сельский совет","80618422"]
[null,null,null,null,"Бураевский муниципальный район","Кашкалевский сельский совет","80618425"]
[null,null,null,null,"Бураевский муниципальный район","Кузбаевский сельский совет","80618431"]
[null,null,null,null,"Бураевский муниципальный район","Кушманаковский сельский совет","80618428"]
[null,null,null,null,"Бураевский муниципальный район","Тазларовский сельский совет","80618437"]
[null,null,null,null,"Бураевский муниципальный район","Тангатаровский сельский совет","80618440"]
[null,null,null,null,"Бураевский муниципальный район","Тепляковский сельский совет","80618443"]
[null,null,null,null,"Бураевский муниципальный район","Челкаковский сельский совет","80618446"]
[null,null,null,null,"Бурзянский муниципальный район"," Все муниципальные образования","80619000"]
[null,null,null,null,"Бурзянский муниципальный район","Аскаровский сельский совет","80619404"]
[null,null,null,null,"Бурзянский муниципальный район","Атиковский сельский совет","80619407"]
[null,null,null,null,"Бурзянский муниципальный район","Байгазинский сельский совет","80619409"]
[null,null,null,null,"Бурзянский муниципальный район","Байназаровский сельский совет","80619410"]
[null,null,null,null,"Бурзянский муниципальный район","Галиакберовский сельский совет","80619413"]
[null,null,null,null,"Бурзянский муниципальный район","Иргизлинский сельский совет","80619416"]
[null,null,null,null,"Бурзянский муниципальный район","Киекбаевский сельский совет","80619419"]
[null,null,null,null,"Бурзянский муниципальный район","Кипчакский сельский совет","80619420"]
[null,null,null,null,"Бурзянский муниципальный район","Кулганинский сельский совет","80619440"]
[null,null,null,null,"Бурзянский муниципальный район","Старомунасиповский сельский совет","80619422"]
[null,null,null,null,"Бурзянский муниципальный район","Старосубхангуловский сельский совет","80619425"]
[null,null,null,null,"Бурзянский муниципальный район","Тимировский сельский совет","80619430"]
[null,null,null,null,"Гафурийский муниципальный район"," Все муниципальные образования","80621000"]
[null,null,null,null,"Гафурийский муниципальный район","Белоозерский сельский совет","80621407"]
[null,null,null,null,"Гафурийский муниципальный район","Бельский сельский совет","80621410"]
[null,null,null,null,"Гафурийский муниципальный район","Бурлинский сельский совет","80621413"]
[null,null,null,null,"Гафурийский муниципальный район","Буруновский сельский совет","80621414"]
[null,null,null,null,"Гафурийский муниципальный район","Зилим-Карановский сельский совет","80621416"]
[null,null,null,null,"Гафурийский муниципальный район","Имендяшевский сельский совет","80621419"]
[null,null,null,null,"Гафурийский муниципальный район","Ковардинский сельский совет","80621422"]
[null,null,null,null,"Гафурийский муниципальный район","Красноусольский сельский совет","80621423"]
[null,null,null,null,"Гафурийский муниципальный район","Мраковский сельский совет","80621425"]
[null,null,null,null,"Гафурийский муниципальный район","Саитбабинский сельский совет","80621428"]
[null,null,null,null,"Гафурийский муниципальный район","Табынский сельский совет","80621431"]
[null,null,null,null,"Гафурийский муниципальный район","Ташбукановский сельский совет","80621434"]
[null,null,null,null,"Гафурийский муниципальный район","Ташлинский сельский совет","80621437"]
[null,null,null,null,"Гафурийский муниципальный район","Толпаровский сельский совет","80621440"]
[null,null,null,null,"Гафурийский муниципальный район","Утяковский сельский совет","80621443"]
[null,null,null,null,"Гафурийский муниципальный район","Янгискаинский сельский совет","80621446"]
[null,null,null,null,"Город Агидель","Город Агидель","80703000"]
[null,null,null,null,"Город Кумертау","Город Кумертау","80723000"]
[null,null,null,null,"Город Нефтекамск","Город Нефтекамск","80727000"]
[null,null,null,null,"Город Октябрьский","Город Октябрьский","80735000"]
[null,null,null,null,"Город Салават","Город Салават","80739000"]
[null,null,null,null,"Город Сибай","Город Сибай","80743000"]
[null,null,null,null,"Город Стерлитамак","Город Стерлитамак","80745000"]
[null,null,null,null,"Город Уфа","Город Уфа","80701000"]
[null,null,null,null,"Давлекановский муниципальный район"," Все муниципальные образования","80622000"]
[null,null,null,null,"Давлекановский муниципальный район","Алгинский сельский совет","80622404"]
[null,null,null,null,"Давлекановский муниципальный район","Бик-Кармалинский сельский совет","80622410"]
[null,null,null,null,"Давлекановский муниципальный район","Город Давлеканово","80622101"]
[null,null,null,null,"Давлекановский муниципальный район","Ивановский сельский совет","80622413"]
[null,null,null,null,"Давлекановский муниципальный район","Имай-Кармалинский сельский совет","80622416"]
[null,null,null,null,"Давлекановский муниципальный район","Кадыргуловский сельский совет","80622419"]
[null,null,null,null,"Давлекановский муниципальный район","Казангуловский сельский совет","80622422"]
[null,null,null,null,"Давлекановский муниципальный район","Кидрячевский сельский совет","80622425"]
[null,null,null,null,"Давлекановский муниципальный район","Курманкеевский сельский совет","80622428"]
[null,null,null,null,"Давлекановский муниципальный район","Микяшевский сельский совет","80622431"]
[null,null,null,null,"Давлекановский муниципальный район","Поляковский сельский совет","80622434"]
[null,null,null,null,"Давлекановский муниципальный район","Раевский сельский совет","80622437"]
[null,null,null,null,"Давлекановский муниципальный район","Рассветовский сельский совет","80622440"]
[null,null,null,null,"Давлекановский муниципальный район","Сергиопольский сельский совет","80622443"]
[null,null,null,null,"Давлекановский муниципальный район","Соколовский сельский совет","80622444"]
[null,null,null,null,"Давлекановский муниципальный район","Чуюнчинский сельский совет","80622446"]
[null,null,null,null,"Давлекановский муниципальный район","Шестаевский сельский совет","80622449"]
[null,null,null,null,"Дуванский муниципальный район"," Все муниципальные образования","80623000"]
[null,null,null,null,"Дуванский муниципальный район","Ариевский сельский совет","80623404"]
[null,null,null,null,"Дуванский муниципальный район","Вознесенский сельский совет","80623406"]
[null,null,null,null,"Дуванский муниципальный район","Дуванский сельский совет","80623407"]
[null,null,null,null,"Дуванский муниципальный район","Заимкинский сельский совет","80623413"]
[null,null,null,null,"Дуванский муниципальный район","Лемазинский сельский совет","80623419"]
[null,null,null,null,"Дуванский муниципальный район","Месягутовский сельский совет","80623422"]
[null,null,null,null,"Дуванский муниципальный район","Метелинский сельский совет","80623425"]
[null,null,null,null,"Дуванский муниципальный район","Михайловский сельский совет","80623428"]
[null,null,null,null,"Дуванский муниципальный район","Рухтинский сельский совет","80623431"]
[null,null,null,null,"Дуванский муниципальный район","Сальевский сельский совет","80623433"]
[null,null,null,null,"Дуванский муниципальный район","Сикиязский сельский совет","80623434"]
[null,null,null,null,"Дуванский муниципальный район","Улькундинский сельский совет","80623440"]
[null,null,null,null,"Дуванский муниципальный район","Ярославский сельский совет","80623443"]
[null,null,null,null,"Дюртюлинский муниципальный район"," Все муниципальные образования","80624000"]
[null,null,null,null,"Дюртюлинский муниципальный район","Ангасякский сельский совет","80624404"]
[null,null,null,null,"Дюртюлинский муниципальный район","Асяновский сельский совет","80624407"]
[null,null,null,null,"Дюртюлинский муниципальный район","Город Дюртюли","80624101"]
[null,null,null,null,"Дюртюлинский муниципальный район","Исмаиловский сельский совет","80624410"]
[null,null,null,null,"Дюртюлинский муниципальный район","Куккуяновский сельский совет","80624413"]
[null,null,null,null,"Дюртюлинский муниципальный район","Маядыковский сельский совет","80624416"]
[null,null,null,null,"Дюртюлинский муниципальный район","Московский сельский совет","80624422"]
[null,null,null,null,"Дюртюлинский муниципальный район","Семилетовский сельский совет","80624430"]
[null,null,null,null,"Дюртюлинский муниципальный район","Старобаишевский сельский совет","80624431"]
[null,null,null,null,"Дюртюлинский муниципальный район","Староянтузовский сельский совет","80624434"]
[null,null,null,null,"Дюртюлинский муниципальный район","Суккуловский сельский совет","80624437"]
[null,null,null,null,"Дюртюлинский муниципальный район","Таймурзинский сельский совет","80624440"]
[null,null,null,null,"Дюртюлинский муниципальный район","Такарликовский сельский совет","80624443"]
[null,null,null,null,"Дюртюлинский муниципальный район","Учпилинский сельский совет","80624447"]
[null,null,null,null,"Дюртюлинский муниципальный район","Черлаковский сельский совет","80624449"]
[null,null,null,null,"Ермекеевский муниципальный район"," Все муниципальные образования","80625000"]
[null,null,null,null,"Ермекеевский муниципальный район","Бекетовский сельский совет","80625402"]
[null,null,null,null,"Ермекеевский муниципальный район","Восьмомартовский сельский совет","80625404"]
[null,null,null,null,"Ермекеевский муниципальный район","Ермекеевский сельский совет","80625407"]
[null,null,null,null,"Ермекеевский муниципальный район","Кызыл-Ярский сельский совет","80625411"]
[null,null,null,null,"Ермекеевский муниципальный район","Нижнеулу-Елгинский сельский совет","80625413"]
[null,null,null,null,"Ермекеевский муниципальный район","Рятамакский сельский совет","80625416"]
[null,null,null,null,"Ермекеевский муниципальный район","Спартакский сельский совет","80625422"]
[null,null,null,null,"Ермекеевский муниципальный район","Среднекарамалинский сельский совет","80625425"]
[null,null,null,null,"Ермекеевский муниципальный район","Старосуллинский сельский совет","80625428"]
[null,null,null,null,"Ермекеевский муниципальный район","Старотураевский сельский совет","80625431"]
[null,null,null,null,"Ермекеевский муниципальный район","Суккуловский сельский совет","80625434"]
[null,null,null,null,"Ермекеевский муниципальный район","Тарказинский сельский совет","80625437"]
[null,null,null,null,"Ермекеевский муниципальный район","Усман-Ташлинский сельский совет","80625440"]
[null,null,null,null,"ЗАТО город Межгорье","ЗАТО город Межгорье","80707000"]
[null,null,null,null,"Зианчуринский муниципальный район"," Все муниципальные образования","80626000"]
[null,null,null,null,"Зианчуринский муниципальный район","Абзановский сельский совет","80626404"]
[null,null,null,null,"Зианчуринский муниципальный район","Абуляисовский сельский совет","80626405"]
[null,null,null,null,"Зианчуринский муниципальный район","Байдавлетовский сельский совет","80626407"]
[null,null,null,null,"Зианчуринский муниципальный район","Баишевский сельский совет","80626406"]
[null,null,null,null,"Зианчуринский муниципальный район","Бикбауский сельский совет","80626410"]
[null,null,null,null,"Зианчуринский муниципальный район","Исянгуловский сельский совет","80626416"]
[null,null,null,null,"Зианчуринский муниципальный район","Казанбулакский сельский совет","80626419"]
[null,null,null,null,"Зианчуринский муниципальный район","Муйнакский сельский совет","80626422"]
[null,null,null,null,"Зианчуринский муниципальный район","Новопетровский сельский совет","80626425"]
[null,null,null,null,"Зианчуринский муниципальный район","Новочебенкинский сельский совет","80626428"]
[null,null,null,null,"Зианчуринский муниципальный район","Сакмарский сельский совет","80626431"]
[null,null,null,null,"Зианчуринский муниципальный район","Суренский сельский совет","80626434"]
[null,null,null,null,"Зианчуринский муниципальный район","Тазларовский сельский совет","80626437"]
[null,null,null,null,"Зианчуринский муниципальный район","Утягуловский сельский совет","80626440"]
[null,null,null,null,"Зианчуринский муниципальный район","Яныбаевский сельский совет","80626443"]
[null,null,null,null,"Зилаирский муниципальный район"," Все муниципальные образования","80627000"]
[null,null,null,null,"Зилаирский муниципальный район","Бердяшский сельский совет","80627404"]
[null,null,null,null,"Зилаирский муниципальный район","Верхнегалеевский сельский совет","80627410"]
[null,null,null,null,"Зилаирский муниципальный район","Дмитриевский сельский совет","80627413"]
[null,null,null,null,"Зилаирский муниципальный район","Зилаирский сельский совет","80627416"]
[null,null,null,null,"Зилаирский муниципальный район","Ивано-Кувалатский сельский совет","80627419"]
[null,null,null,null,"Зилаирский муниципальный район","Кананикольский сельский совет","80627421"]
[null,null,null,null,"Зилаирский муниципальный район","Канзафаровский сельский совет","80627422"]
[null,null,null,null,"Зилаирский муниципальный район","Кашкаровский сельский совет","80627423"]
[null,null,null,null,"Зилаирский муниципальный район","Матраевский сельский совет","80627425"]
[null,null,null,null,"Зилаирский муниципальный район","Сабыровский сельский совет","80627432"]
[null,null,null,null,"Зилаирский муниципальный район","Уркасский сельский совет","80627434"]
[null,null,null,null,"Зилаирский муниципальный район","Юлдыбаевский сельский совет","80627436"]
[null,null,null,null,"Зилаирский муниципальный район","Ямансазский сельский совет","80627442"]
[null,null,null,null,"Иглинский муниципальный район"," Все муниципальные образования","80628000"]
[null,null,null,null,"Иглинский муниципальный район","Акбердинский сельский совет","80628403"]
[null,null,null,null,"Иглинский муниципальный район","Ауструмский сельский совет","80628405"]
[null,null,null,null,"Иглинский муниципальный район","Балтийский сельский совет","80628410"]
[null,null,null,null,"Иглинский муниципальный район","Ивано-Казанский сельский совет","80628415"]
[null,null,null,null,"Иглинский муниципальный район","Иглинский сельский совет","80628416"]
[null,null,null,null,"Иглинский муниципальный район","Калтымановский сельский совет","80628420"]
[null,null,null,null,"Иглинский муниципальный район","Кальтовский сельский совет","80628425"]
[null,null,null,null,"Иглинский муниципальный район","Красновосходский сельский совет","80628430"]
[null,null,null,null,"Иглинский муниципальный район","Кудеевский сельский совет","80628432"]
[null,null,null,null,"Иглинский муниципальный район","Лемезинский сельский совет","80628435"]
[null,null,null,null,"Иглинский муниципальный район","Майский сельский совет","80628440"]
[null,null,null,null,"Иглинский муниципальный район","Надеждинский сельский совет","80628445"]
[null,null,null,null,"Иглинский муниципальный район","Охлебининский сельский совет","80628450"]
[null,null,null,null,"Иглинский муниципальный район","Тавтимановский сельский совет","80628455"]
[null,null,null,null,"Иглинский муниципальный район","Турбаслинский сельский совет","80628460"]
[null,null,null,null,"Иглинский муниципальный район","Уктеевский сельский совет","80628470"]
[null,null,null,null,"Иглинский муниципальный район","Улу-Телякский сельский совет","80628472"]
[null,null,null,null,"Иглинский муниципальный район","Урманский сельский совет","80628474"]
[null,null,null,null,"Иглинский муниципальный район","Чуваш-Кубовский сельский совет","80628480"]
[null,null,null,null,"Илишевский муниципальный район"," Все муниципальные образования","80630000"]
[null,null,null,null,"Илишевский муниципальный район","Аккузевский сельский совет","80630404"]
[null,null,null,null,"Илишевский муниципальный район","Андреевский сельский совет","80630408"]
[null,null,null,null,"Илишевский муниципальный район","Базитамакский сельский совет","80630412"]
[null,null,null,null,"Илишевский муниципальный район","Бишкураевский сельский совет","80630416"]
[null,null,null,null,"Илишевский муниципальный район","Дюмеевский сельский совет","80630424"]
[null,null,null,null,"Илишевский муниципальный район","Игметовский сельский совет","80630426"]
[null,null,null,null,"Илишевский муниципальный район","Исаметовский сельский совет","80630428"]
[null,null,null,null,"Илишевский муниципальный район","Исанбаевский сельский совет","80630432"]
[null,null,null,null,"Илишевский муниципальный район","Итеевский сельский совет","80630436"]
[null,null,null,null,"Илишевский муниципальный район","Ишкаровский сельский совет","80630440"]
[null,null,null,null,"Илишевский муниципальный район","Кадыровский сельский совет","80630444"]
[null,null,null,null,"Илишевский муниципальный район","Карабашевский сельский совет","80630448"]
[null,null,null,null,"Илишевский муниципальный район","Кужбахтинский сельский совет","80630452"]
[null,null,null,null,"Илишевский муниципальный район","Новомедведевский сельский совет","80630456"]
[null,null,null,null,"Илишевский муниципальный район","Рсаевский сельский совет","80630460"]
[null,null,null,null,"Илишевский муниципальный район","Старокуктовский сельский совет","80630464"]
[null,null,null,null,"Илишевский муниципальный район","Сюльтинский сельский совет","80630468"]
[null,null,null,null,"Илишевский муниципальный район","Урметовский сельский совет","80630472"]
[null,null,null,null,"Илишевский муниципальный район","Черекулевский сельский совет","80630476"]
[null,null,null,null,"Илишевский муниципальный район","Юнновский сельский совет","80630478"]
[null,null,null,null,"Илишевский муниципальный район","Ябалаковский сельский совет","80630480"]
[null,null,null,null,"Илишевский муниципальный район","Яркеевский сельский совет","80630484"]
[null,null,null,null,"Ишимбайский муниципальный район"," Все муниципальные образования","80631000"]
[null,null,null,null,"Ишимбайский муниципальный район","Арметовский сельский совет","80631405"]
[null,null,null,null,"Ишимбайский муниципальный район","Байгузинский сельский совет","80631415"]
[null,null,null,null,"Ишимбайский муниципальный район","Верхоторский сельский совет","80631425"]
[null,null,null,null,"Ишимбайский муниципальный район","Город Ишимбай","80631101"]
[null,null,null,null,"Ишимбайский муниципальный район","Иткуловский сельский совет","80631430"]
[null,null,null,null,"Ишимбайский муниципальный район","Ишеевский сельский совет","80631435"]
[null,null,null,null,"Ишимбайский муниципальный район","Кузяновский сельский совет","80631440"]
[null,null,null,null,"Ишимбайский муниципальный район","Кулгунинский сельский совет","80631445"]
[null,null,null,null,"Ишимбайский муниципальный район","Макаровский сельский совет","80631450"]
[null,null,null,null,"Ишимбайский муниципальный район","Петровский сельский совет","80631455"]
[null,null,null,null,"Ишимбайский муниципальный район","Сайрановский сельский совет","80631460"]
[null,null,null,null,"Ишимбайский муниципальный район","Скворчихинский сельский совет","80631470"]
[null,null,null,null,"Ишимбайский муниципальный район","Урман-Бишкадакский сельский совет","80631475"]
[null,null,null,null,"Ишимбайский муниципальный район","Янурусовский сельский совет","80631480"]
[null,null,null,null,"Калтасинский муниципальный район"," Все муниципальные образования","80633000"]
[null,null,null,null,"Калтасинский муниципальный район","Амзибашевский сельский совет","80633403"]
[null,null,null,null,"Калтасинский муниципальный район","Большекачаковский сельский совет","80633405"]
[null,null,null,null,"Калтасинский муниципальный район","Калегинский сельский совет","80633415"]
[null,null,null,null,"Калтасинский муниципальный район","Калмиябашевский сельский совет","80633420"]
[null,null,null,null,"Калтасинский муниципальный район","Калтасинский сельский совет","80633425"]
[null,null,null,null,"Калтасинский муниципальный район","Кельтеевский сельский совет","80633430"]
[null,null,null,null,"Калтасинский муниципальный район","Краснохолмский сельский совет","80633447"]
[null,null,null,null,"Калтасинский муниципальный район","Нижнекачмашевский сельский совет","80633445"]
[null,null,null,null,"Калтасинский муниципальный район","Новокильбахтинский сельский совет","80633446"]
[null,null,null,null,"Калтасинский муниципальный район","Старояшевский сельский совет","80633452"]
[null,null,null,null,"Калтасинский муниципальный район","Тюльдинский сельский совет","80633450"]
[null,null,null,null,"Караидельский муниципальный район"," Все муниципальные образования","80634000"]
[null,null,null,null,"Караидельский муниципальный район","Артакульский сельский совет","80634404"]
[null,null,null,null,"Караидельский муниципальный район","Байкибашевский сельский совет","80634412"]
[null,null,null,null,"Караидельский муниципальный район","Байкинский сельский совет","80634416"]
[null,null,null,null,"Караидельский муниципальный район","Верхнесуянский сельский совет","80634424"]
[null,null,null,null,"Караидельский муниципальный район","Караидельский сельский совет","80634432"]
[null,null,null,null,"Караидельский муниципальный район","Караярский сельский совет","80634436"]
[null,null,null,null,"Караидельский муниципальный район","Кирзинский сельский совет","80634440"]
[null,null,null,null,"Караидельский муниципальный район","Куртлыкульский сельский совет","80634444"]
[null,null,null,null,"Караидельский муниципальный район","Магинский сельский совет","80634445"]
[null,null,null,null,"Караидельский муниципальный район","Новобердяшский сельский совет","80634452"]
[null,null,null,null,"Караидельский муниципальный район","Новомуллакаевский сельский совет","80634456"]
[null,null,null,null,"Караидельский муниципальный район","Озеркинский сельский совет","80634460"]
[null,null,null,null,"Караидельский муниципальный район","Подлубовский сельский совет","80634464"]
[null,null,null,null,"Караидельский муниципальный район","Староакбуляковский сельский совет","80634472"]
[null,null,null,null,"Караидельский муниципальный район","Ургушевский сельский совет","80634480"]
[null,null,null,null,"Караидельский муниципальный район","Урюш-Битуллинский сельский совет","80634484"]
[null,null,null,null,"Караидельский муниципальный район","Явгильдинский сельский совет","80634488"]
[null,null,null,null,"Кармаскалинский муниципальный район"," Все муниципальные образования","80635000"]
[null,null,null,null,"Кармаскалинский муниципальный район","Адзитаровский сельский совет","80635405"]
[null,null,null,null,"Кармаскалинский муниципальный район","Бузовьязовский сельский совет","80635415"]
[null,null,null,null,"Кармаскалинский муниципальный район","Ефремкинский сельский совет","80635420"]
[null,null,null,null,"Кармаскалинский муниципальный район","Кабаковский сельский совет","80635423"]
[null,null,null,null,"Кармаскалинский муниципальный район","Камышлинский сельский совет","80635425"]
[null,null,null,null,"Кармаскалинский муниципальный район","Карламанский сельский совет","80635430"]
[null,null,null,null,"Кармаскалинский муниципальный район","Кармаскалинский сельский совет","80635435"]
[null,null,null,null,"Кармаскалинский муниципальный район","Николаевский сельский совет","80635440"]
[null,null,null,null,"Кармаскалинский муниципальный район","Новокиешкинский сельский совет","80635445"]
[null,null,null,null,"Кармаскалинский муниципальный район","Подлубовский сельский совет","80635450"]
[null,null,null,null,"Кармаскалинский муниципальный район","Прибельский сельский совет","80635451"]
[null,null,null,null,"Кармаскалинский муниципальный район","Савалеевский сельский совет","80635455"]
[null,null,null,null,"Кармаскалинский муниципальный район","Сахаевский сельский совет","80635475"]
[null,null,null,null,"Кармаскалинский муниципальный район","Старобабичевский сельский совет","80635465"]
[null,null,null,null,"Кармаскалинский муниципальный район","Старомусинский сельский совет","80635470"]
[null,null,null,null,"Кармаскалинский муниципальный район","Шаймуратовский сельский совет","80635480"]
[null,null,null,null,"Кигинский муниципальный район"," Все муниципальные образования","80636000"]
[null,null,null,null,"Кигинский муниципальный район","Абзаевский сельский совет","80636405"]
[null,null,null,null,"Кигинский муниципальный район","Арслановский сельский совет","80636410"]
[null,null,null,null,"Кигинский муниципальный район","Верхнекигинский сельский совет","80636415"]
[null,null,null,null,"Кигинский муниципальный район","Душанбековский сельский совет","80636425"]
[null,null,null,null,"Кигинский муниципальный район","Еланлинский сельский совет","80636420"]
[null,null,null,null,"Кигинский муниципальный район","Ибраевский сельский совет","80636430"]
[null,null,null,null,"Кигинский муниципальный район","Кандаковский сельский совет","80636435"]
[null,null,null,null,"Кигинский муниципальный район","Леузинский сельский совет","80636440"]
[null,null,null,null,"Кигинский муниципальный район","Нижнекигинский сельский совет","80636445"]
[null,null,null,null,"Краснокамский муниципальный район"," Все муниципальные образования","80637000"]
[null,null,null,null,"Краснокамский муниципальный район","Арлановский сельский совет","80637405"]
[null,null,null,null,"Краснокамский муниципальный район","Кариевский сельский совет","80637410"]
[null,null,null,null,"Краснокамский муниципальный район","Куяновский сельский совет","80637412"]
[null,null,null,null,"Краснокамский муниципальный район","Музяковский сельский совет","80637415"]
[null,null,null,null,"Краснокамский муниципальный район","Николо-Березовский сельский совет","80637421"]
[null,null,null,null,"Краснокамский муниципальный район","Никольский сельский совет","80637420"]
[null,null,null,null,"Краснокамский муниципальный район","Новобуринский сельский совет","80637425"]
[null,null,null,null,"Краснокамский муниципальный район","Новокабановский сельский совет","80637430"]
[null,null,null,null,"Краснокамский муниципальный район","Новокаинлыковский сельский совет","80637435"]
[null,null,null,null,"Краснокамский муниципальный район","Новонагаевский сельский совет","80637440"]
[null,null,null,null,"Краснокамский муниципальный район","Новоянзигитовский сельский совет","80637461"]
[null,null,null,null,"Краснокамский муниципальный район","Раздольевский сельский совет","80637443"]
[null,null,null,null,"Краснокамский муниципальный район","Саузбашевский сельский совет","80637450"]
[null,null,null,null,"Краснокамский муниципальный район","Шушнурский сельский совет","80637465"]
[null,null,null,null,"Кугарчинский муниципальный район"," Все муниципальные образования","80638000"]
[null,null,null,null,"Кугарчинский муниципальный район","Волостновский сельский совет","80638405"]
[null,null,null,null,"Кугарчинский муниципальный район","Зареченский сельский совет","80638410"]
[null,null,null,null,"Кугарчинский муниципальный район","Ибраевский сельский совет","80638415"]
[null,null,null,null,"Кугарчинский муниципальный район","Ижбердинский сельский совет","80638420"]
[null,null,null,null,"Кугарчинский муниципальный район","Иртюбякский сельский совет","80638425"]
[null,null,null,null,"Кугарчинский муниципальный район","Исимовский сельский совет","80638430"]
[null,null,null,null,"Кугарчинский муниципальный район","Кугарчинский сельский совет","80638440"]
[null,null,null,null,"Кугарчинский муниципальный район","Максютовский сельский совет","80638445"]
[null,null,null,null,"Кугарчинский муниципальный район","Мраковский сельский совет","80638450"]
[null,null,null,null,"Кугарчинский муниципальный район","Нижнебиккузинский сельский совет","80638455"]
[null,null,null,null,"Кугарчинский муниципальный район","Новопетровский сельский совет","80638460"]
[null,null,null,null,"Кугарчинский муниципальный район","Нукаевский сельский совет","80638463"]
[null,null,null,null,"Кугарчинский муниципальный район","Побоищенский сельский совет","80638470"]
[null,null,null,null,"Кугарчинский муниципальный район","Санзяповский сельский совет","80638473"]
[null,null,null,null,"Кугарчинский муниципальный район","Тляумбетовский сельский совет","80638475"]
[null,null,null,null,"Кугарчинский муниципальный район","Уральский сельский совет","80638480"]
[null,null,null,null,"Кугарчинский муниципальный район","Чапаевский сельский совет","80638483"]
[null,null,null,null,"Кугарчинский муниципальный район","Юлдыбаевский сельский совет","80638485"]
[null,null,null,null,"Кугарчинский муниципальный район","Юмагузинский сельский совет","80638487"]
[null,null,null,null,"Кугарчинский муниципальный район","Ялчинский сельский совет","80638495"]
[null,null,null,null,"Кушнаренковский муниципальный район"," Все муниципальные образования","80640000"]
[null,null,null,null,"Кушнаренковский муниципальный район","Ахметовский сельский совет","80640405"]
[null,null,null,null,"Кушнаренковский муниципальный район","Бакаевский сельский совет","80640410"]
[null,null,null,null,"Кушнаренковский муниципальный район","Горьковский сельский совет","80640415"]
[null,null,null,null,"Кушнаренковский муниципальный район","Карача-Елгинский сельский совет","80640430"]
[null,null,null,null,"Кушнаренковский муниципальный район","Кушнаренковский сельский совет","80640435"]
[null,null,null,null,"Кушнаренковский муниципальный район","Матвеевский сельский совет","80640440"]
[null,null,null,null,"Кушнаренковский муниципальный район","Расмекеевский сельский совет","80640465"]
[null,null,null,null,"Кушнаренковский муниципальный район","Старогумеровский сельский совет","80640470"]
[null,null,null,null,"Кушнаренковский муниципальный район","Старокамышлинский сельский совет","80640475"]
[null,null,null,null,"Кушнаренковский муниципальный район","Старокурмашевский сельский совет","80640477"]
[null,null,null,null,"Кушнаренковский муниципальный район","Старотукмаклинский сельский совет","80640480"]
[null,null,null,null,"Кушнаренковский муниципальный район","Шариповский сельский совет","80640490"]
[null,null,null,null,"Куюргазинский муниципальный район"," Все муниципальные образования","80639000"]
[null,null,null,null,"Куюргазинский муниципальный район","Бахмутский сельский совет","80639410"]
[null,null,null,null,"Куюргазинский муниципальный район","Ермолаевский сельский совет","80639412"]
[null,null,null,null,"Куюргазинский муниципальный район","Зяк-Ишметовский сельский совет","80639417"]
[null,null,null,null,"Куюргазинский муниципальный район","Илькинеевский сельский совет","80639415"]
[null,null,null,null,"Куюргазинский муниципальный район","Кривле-Илюшкинский сельский совет","80639420"]
[null,null,null,null,"Куюргазинский муниципальный район","Ленинский сельский совет","80639425"]
[null,null,null,null,"Куюргазинский муниципальный район","Мурапталовский сельский совет","80639435"]
[null,null,null,null,"Куюргазинский муниципальный район","Отрадинский сельский совет","80639440"]
[null,null,null,null,"Куюргазинский муниципальный район","Свободинский сельский совет","80639450"]
[null,null,null,null,"Куюргазинский муниципальный район","Таймасовский сельский совет","80639455"]
[null,null,null,null,"Куюргазинский муниципальный район","Шабагишский сельский совет","80639460"]
[null,null,null,null,"Куюргазинский муниципальный район","Якшимбетовский сельский совет","80639465"]
[null,null,null,null,"Мелеузовский муниципальный район"," Все муниципальные образования","80641000"]
[null,null,null,null,"Мелеузовский муниципальный район","Абитовский сельский совет","80641402"]
[null,null,null,null,"Мелеузовский муниципальный район","Александровский сельский совет","80641405"]
[null,null,null,null,"Мелеузовский муниципальный район","Аптраковский сельский совет","80641410"]
[null,null,null,null,"Мелеузовский муниципальный район","Араслановский сельский совет","80641415"]
[null,null,null,null,"Мелеузовский муниципальный район","Воскресенский сельский совет","80641422"]
[null,null,null,null,"Мелеузовский муниципальный район","Город Мелеуз","80641101"]
[null,null,null,null,"Мелеузовский муниципальный район","Денисовский сельский совет","80641435"]
[null,null,null,null,"Мелеузовский муниципальный район","Зирганский сельский совет","80641430"]
[null,null,null,null,"Мелеузовский муниципальный район","Иштугановский сельский совет","80641445"]
[null,null,null,null,"Мелеузовский муниципальный район","Корнеевский сельский совет","80641480"]
[null,null,null,null,"Мелеузовский муниципальный район","Мелеузовский сельский совет","80641450"]
[null,null,null,null,"Мелеузовский муниципальный район","Нордовский сельский совет","80641455"]
[null,null,null,null,"Мелеузовский муниципальный район","Нугушевский сельский совет","80641460"]
[null,null,null,null,"Мелеузовский муниципальный район","Партизанский сельский совет","80641465"]
[null,null,null,null,"Мелеузовский муниципальный район","Первомайский сельский совет","80641470"]
[null,null,null,null,"Мелеузовский муниципальный район","Сарышевский сельский совет","80641475"]
[null,null,null,null,"Мелеузовский муниципальный район","Шевченковский сельский совет","80641485"]
[null,null,null,null,"Мечетлинский муниципальный район"," Все муниципальные образования","80642000"]
[null,null,null,null,"Мечетлинский муниципальный район","Абдуллинский сельский совет","80642401"]
[null,null,null,null,"Мечетлинский муниципальный район","Алегазовский сельский совет","80642405"]
[null,null,null,null,"Мечетлинский муниципальный район","Большеокинский сельский совет","80642410"]
[null,null,null,null,"Мечетлинский муниципальный район","Большеустьикинский сельский совет","80642415"]
[null,null,null,null,"Мечетлинский муниципальный район","Дуван-Мечетлинский сельский совет","80642420"]
[null,null,null,null,"Мечетлинский муниципальный район","Кургатовский сельский совет","80642423"]
[null,null,null,null,"Мечетлинский муниципальный район","Лемез-Тамакский сельский совет","80642425"]
[null,null,null,null,"Мечетлинский муниципальный район","Малоустьикинский сельский совет","80642430"]
[null,null,null,null,"Мечетлинский муниципальный район","Новомещеровский сельский совет","80642435"]
[null,null,null,null,"Мечетлинский муниципальный район","Новояушевский сельский совет","80642442"]
[null,null,null,null,"Мечетлинский муниципальный район","Ростовский сельский совет","80642445"]
[null,null,null,null,"Мечетлинский муниципальный район","Юнусовский сельский совет","80642450"]
[null,null,null,null,"Мишкинский муниципальный район"," Все муниципальные образования","80643000"]
[null,null,null,null,"Мишкинский муниципальный район","Акбулатовский сельский совет","80643405"]
[null,null,null,null,"Мишкинский муниципальный район","Баймурзинский сельский совет","80643410"]
[null,null,null,null,"Мишкинский муниципальный район","Большесухоязовский сельский совет","80643415"]
[null,null,null,null,"Мишкинский муниципальный район","Большешадинский сельский совет","80643420"]
[null,null,null,null,"Мишкинский муниципальный район","Ирсаевский сельский совет","80643425"]
[null,null,null,null,"Мишкинский муниципальный район","Кайраковский сельский совет","80643430"]
[null,null,null,null,"Мишкинский муниципальный район","Камеевский сельский совет","80643435"]
[null,null,null,null,"Мишкинский муниципальный район","Мавлютовский сельский совет","80643445"]
[null,null,null,null,"Мишкинский муниципальный район","Мишкинский сельский совет","80643450"]
[null,null,null,null,"Мишкинский муниципальный район","Новотроицкий сельский совет","80643455"]
[null,null,null,null,"Мишкинский муниципальный район","Староарзаматовский сельский совет","80643460"]
[null,null,null,null,"Мишкинский муниципальный район","Тынбаевский сельский совет","80643465"]
[null,null,null,null,"Мишкинский муниципальный район","Урьядинский сельский совет","80643470"]
[null,null,null,null,"Мишкинский муниципальный район","Чураевский сельский совет","80643480"]
[null,null,null,null,"Миякинский муниципальный район"," Все муниципальные образования","80644000"]
[null,null,null,null,"Миякинский муниципальный район","Биккуловский сельский совет","80644405"]
[null,null,null,null,"Миякинский муниципальный район","Богдановский сельский совет","80644410"]
[null,null,null,null,"Миякинский муниципальный район","Большекаркалинский сельский совет","80644415"]
[null,null,null,null,"Миякинский муниципальный район","Енебей-Урсаевский сельский совет","80644420"]
[null,null,null,null,"Миякинский муниципальный район","Зильдяровский сельский совет","80644425"]
[null,null,null,null,"Миякинский муниципальный район","Ильчигуловский сельский совет","80644428"]
[null,null,null,null,"Миякинский муниципальный район","Карановский сельский совет","80644429"]
[null,null,null,null,"Миякинский муниципальный район","Качегановский сельский совет","80644430"]
[null,null,null,null,"Миякинский муниципальный район","Кожай-Семеновский сельский совет","80644435"]
[null,null,null,null,"Миякинский муниципальный район","Менеузтамакский сельский совет","80644440"]
[null,null,null,null,"Миякинский муниципальный район","Миякибашевский сельский совет","80644445"]
[null,null,null,null,"Миякинский муниципальный район","Миякинский сельский совет","80644450"]
[null,null,null,null,"Миякинский муниципальный район","Новокарамалинский сельский совет","80644460"]
[null,null,null,null,"Миякинский муниципальный район","Сатыевский сельский совет","80644465"]
[null,null,null,null,"Миякинский муниципальный район","Уршакбашкарамалинский сельский совет","80644470"]
[null,null,null,null,"Нуримановский муниципальный район"," Все муниципальные образования","80645000"]
[null,null,null,null,"Нуримановский муниципальный район","Байгильдинский сельский совет","80645405"]
[null,null,null,null,"Нуримановский муниципальный район","Баш-Шидинский сельский совет","80645410"]
[null,null,null,null,"Нуримановский муниципальный район","Красногорский сельский совет","80645415"]
[null,null,null,null,"Нуримановский муниципальный район","Красноключевский сельский совет","80645416"]
[null,null,null,null,"Нуримановский муниципальный район","Никольский сельский совет","80645420"]
[null,null,null,null,"Нуримановский муниципальный район","Новокулевский сельский совет","80645435"]
[null,null,null,null,"Нуримановский муниципальный район","Новосубаевский сельский совет","80645440"]
[null,null,null,null,"Нуримановский муниципальный район","Павловский сельский совет","80645444"]
[null,null,null,null,"Нуримановский муниципальный район","Первомайский сельский совет","80645445"]
[null,null,null,null,"Нуримановский муниципальный район","Сарвинский сельский совет","80645450"]
[null,null,null,null,"Нуримановский муниципальный район","Старобедеевский сельский совет","80645452"]
[null,null,null,null,"Нуримановский муниципальный район","Староисаевский сельский совет","80645455"]
[null,null,null,null,"Салаватский муниципальный район"," Все муниципальные образования","80647000"]
[null,null,null,null,"Салаватский муниципальный район","Алькинский сельский совет","80647405"]
[null,null,null,null,"Салаватский муниципальный район","Аркауловский сельский совет","80647410"]
[null,null,null,null,"Салаватский муниципальный район","Ишимбаевский сельский совет","80647415"]
[null,null,null,null,"Салаватский муниципальный район","Лагеревский сельский совет","80647425"]
[null,null,null,null,"Салаватский муниципальный район","Лаклинский сельский совет","80647430"]
[null,null,null,null,"Салаватский муниципальный район","Малоязовский сельский совет","80647435"]
[null,null,null,null,"Салаватский муниципальный район","Мечетлинский сельский совет","80647440"]
[null,null,null,null,"Салаватский муниципальный район","Мещегаровский сельский совет","80647445"]
[null,null,null,null,"Салаватский муниципальный район","Мурсалимкинский сельский совет","80647447"]
[null,null,null,null,"Салаватский муниципальный район","Насибашевский сельский совет","80647450"]
[null,null,null,null,"Салаватский муниципальный район","Первомайский сельский совет","80647476"]
[null,null,null,null,"Салаватский муниципальный район","Салаватский сельский совет","80647453"]
[null,null,null,null,"Салаватский муниципальный район","Таймеевский сельский совет","80647455"]
[null,null,null,null,"Салаватский муниципальный район","Терменевский сельский совет","80647460"]
[null,null,null,null,"Салаватский муниципальный район","Турналинский сельский совет","80647465"]
[null,null,null,null,"Салаватский муниципальный район","Янгантауский сельский совет","80647475"]
[null,null,null,null,"Стерлибашевский муниципальный район"," Все муниципальные образования","80648000"]
[null,null,null,null,"Стерлибашевский муниципальный район","Айдаралинский сельский совет","80648405"]
[null,null,null,null,"Стерлибашевский муниципальный район","Аллагуватский сельский совет","80648402"]
[null,null,null,null,"Стерлибашевский муниципальный район","Бакеевский сельский совет","80648410"]
[null,null,null,null,"Стерлибашевский муниципальный район","Бузатовский сельский совет","80648415"]
[null,null,null,null,"Стерлибашевский муниципальный район","Кабакушский сельский совет","80648418"]
[null,null,null,null,"Стерлибашевский муниципальный район","Карагушский сельский совет","80648420"]
[null,null,null,null,"Стерлибашевский муниципальный район","Куганакбашевский сельский совет","80648425"]
[null,null,null,null,"Стерлибашевский муниципальный район","Кундрякский сельский совет","80648430"]
[null,null,null,null,"Стерлибашевский муниципальный район","Сарайсинский сельский совет","80648435"]
[null,null,null,null,"Стерлибашевский муниципальный район","Старокалкашевский сельский совет","80648440"]
[null,null,null,null,"Стерлибашевский муниципальный район","Стерлибашевский сельский совет","80648445"]
[null,null,null,null,"Стерлибашевский муниципальный район","Тятер-Араслановский сельский совет","80648455"]
[null,null,null,null,"Стерлибашевский муниципальный район","Халикеевский сельский совет","80648460"]
[null,null,null,null,"Стерлибашевский муниципальный район","Янгурчинский сельский совет","80648465"]
[null,null,null,null,"Стерлибашевский муниципальный район","Яшергановский сельский совет","80648470"]
[null,null,null,null,"Стерлитамакский муниципальный район"," Все муниципальные образования","80649000"]
[null,null,null,null,"Стерлитамакский муниципальный район","Айгулевский сельский совет","80649404"]
[null,null,null,null,"Стерлитамакский муниципальный район","Алатанинский сельский совет","80649412"]
[null,null,null,null,"Стерлитамакский муниципальный район","Ашкадарский сельский совет","80649416"]
[null,null,null,null,"Стерлитамакский муниципальный район","Аючевский сельский совет","80649418"]
[null,null,null,null,"Стерлитамакский муниципальный район","Буриказгановский сельский совет","80649428"]
[null,null,null,null,"Стерлитамакский муниципальный район","Казадаевский сельский совет","80649436"]
[null,null,null,null,"Стерлитамакский муниципальный район","Константиноградовский сельский совет","80649420"]
[null,null,null,null,"Стерлитамакский муниципальный район","Красноярский сельский совет","80649444"]
[null,null,null,null,"Стерлитамакский муниципальный район","Куганакский сельский совет","80649440"]
[null,null,null,null,"Стерлитамакский муниципальный район","Максимовский сельский совет","80649424"]
[null,null,null,null,"Стерлитамакский муниципальный район","Наумовский сельский совет","80649448"]
[null,null,null,null,"Стерлитамакский муниципальный район","Николаевский сельский совет","80649452"]
[null,null,null,null,"Стерлитамакский муниципальный район","Октябрьский сельский совет","80649460"]
[null,null,null,null,"Стерлитамакский муниципальный район","Отрадовский сельский совет","80649456"]
[null,null,null,null,"Стерлитамакский муниципальный район","Первомайский сельский совет","80649464"]
[null,null,null,null,"Стерлитамакский муниципальный район","Подлесненский сельский совет","80649468"]
[null,null,null,null,"Стерлитамакский муниципальный район","Рощинский сельский совет","80649478"]
[null,null,null,null,"Стерлитамакский муниципальный район","Рязановский сельский совет","80649480"]
[null,null,null,null,"Стерлитамакский муниципальный район","Тюрюшлинский сельский совет","80649488"]
[null,null,null,null,"Стерлитамакский муниципальный район","Услинский сельский совет","80649492"]
[null,null,null,null,"Татышлинский муниципальный район"," Все муниципальные образования","80650000"]
[null,null,null,null,"Татышлинский муниципальный район","Акбулатовский сельский совет","80650405"]
[null,null,null,null,"Татышлинский муниципальный район","Аксаитовский сельский совет","80650410"]
[null,null,null,null,"Татышлинский муниципальный район","Бадряшевский сельский совет","80650415"]
[null,null,null,null,"Татышлинский муниципальный район","Буль-Кайпановский сельский совет","80650420"]
[null,null,null,null,"Татышлинский муниципальный район","Верхнетатышлинский сельский совет","80650425"]
[null,null,null,null,"Татышлинский муниципальный район","Кальмияровский сельский совет","80650430"]
[null,null,null,null,"Татышлинский муниципальный район","Кальтяевский сельский совет","80650435"]
[null,null,null,null,"Татышлинский муниципальный район","Кудашевский сельский совет","80650440"]
[null,null,null,null,"Татышлинский муниципальный район","Курдымский сельский совет","80650445"]
[null,null,null,null,"Татышлинский муниципальный район","Нижнебалтачевский сельский совет","80650450"]
[null,null,null,null,"Татышлинский муниципальный район","Новотатышлинский сельский совет","80650455"]
[null,null,null,null,"Татышлинский муниципальный район","Шулгановский сельский совет","80650460"]
[null,null,null,null,"Татышлинский муниципальный район","Ялгыз-Наратский сельский совет","80650465"]
[null,null,null,null,"Туймазинский муниципальный район"," Все муниципальные образования","80651000"]
[null,null,null,null,"Туймазинский муниципальный район","Бишкураевский сельский совет","80651405"]
[null,null,null,null,"Туймазинский муниципальный район","Верхнебишиндинский сельский совет","80651410"]
[null,null,null,null,"Туймазинский муниципальный район","Верхнетроицкий сельский совет","80651415"]
[null,null,null,null,"Туймазинский муниципальный район","Гафуровский сельский совет","80651417"]
[null,null,null,null,"Туймазинский муниципальный район","Город Туймазы","80651101"]
[null,null,null,null,"Туймазинский муниципальный район","Ильчимбетовский сельский совет","80651420"]
[null,null,null,null,"Туймазинский муниципальный район","Какрыбашевский сельский совет","80651425"]
[null,null,null,null,"Туймазинский муниципальный район","Кандринский сельский совет","80651427"]
[null,null,null,null,"Туймазинский муниципальный район","Карамалы-Губеевский сельский совет","80651430"]
[null,null,null,null,"Туймазинский муниципальный район","Каратовский сельский совет","80651435"]
[null,null,null,null,"Туймазинский муниципальный район","Нижнетроицкий сельский совет","80651439"]
[null,null,null,null,"Туймазинский муниципальный район","Николаевский сельский совет","80651440"]
[null,null,null,null,"Туймазинский муниципальный район","Сайрановский сельский совет","80651445"]
[null,null,null,null,"Туймазинский муниципальный район","Серафимовский сельский совет","80651447"]
[null,null,null,null,"Туймазинский муниципальный район","Старотуймазинский сельский совет","80651455"]
[null,null,null,null,"Туймазинский муниципальный район","Субханкуловский сельский совет","80651461"]
[null,null,null,null,"Туймазинский муниципальный район","Татар-Улкановский сельский совет","80651465"]
[null,null,null,null,"Туймазинский муниципальный район","Тюменяковский сельский совет","80651470"]
[null,null,null,null,"Туймазинский муниципальный район","Чукадыбашевский сельский совет","80651475"]
[null,null,null,null,"Уфимский муниципальный район"," Все муниципальные образования","80652000"]
[null,null,null,null,"Уфимский муниципальный район","Авдонский сельский совет","80652405"]
[null,null,null,null,"Уфимский муниципальный район","Алексеевский сельский совет","80652403"]
[null,null,null,null,"Уфимский муниципальный район","Булгаковский сельский совет","80652410"]
[null,null,null,null,"Уфимский муниципальный район","Дмитриевский сельский совет","80652415"]
[null,null,null,null,"Уфимский муниципальный район","Жуковский сельский совет","80652418"]
[null,null,null,null,"Уфимский муниципальный район","Зубовский сельский совет","80652420"]
[null,null,null,null,"Уфимский муниципальный район","Кармасанский сельский совет","80652423"]
[null,null,null,null,"Уфимский муниципальный район","Кирилловский сельский совет","80652425"]
[null,null,null,null,"Уфимский муниципальный район","Красноярский сельский совет","80652430"]
[null,null,null,null,"Уфимский муниципальный район","Миловский сельский совет","80652435"]
[null,null,null,null,"Уфимский муниципальный район","Михайловский сельский совет","80652440"]
[null,null,null,null,"Уфимский муниципальный район","Николаевский сельский совет","80652450"]
[null,null,null,null,"Уфимский муниципальный район","Ольховский сельский совет","80652452"]
[null,null,null,null,"Уфимский муниципальный район","Русско-Юрмашский сельский совет","80652455"]
[null,null,null,null,"Уфимский муниципальный район","Таптыковский сельский совет","80652460"]
[null,null,null,null,"Уфимский муниципальный район","Черкасский сельский совет","80652472"]
[null,null,null,null,"Уфимский муниципальный район","Чесноковский сельский совет","80652473"]
[null,null,null,null,"Уфимский муниципальный район","Шемякский сельский совет","80652475"]
[null,null,null,null,"Уфимский муниципальный район","Юматовский сельский совет","80652480"]
[null,null,null,null,"Учалинский муниципальный район"," Все муниципальные образования","80653000"]
[null,null,null,null,"Учалинский муниципальный район","Амангильдинский сельский совет","80653410"]
[null,null,null,null,"Учалинский муниципальный район","Ахуновский сельский совет","80653415"]
[null,null,null,null,"Учалинский муниципальный район","Буйдинский сельский совет","80653416"]
[null,null,null,null,"Учалинский муниципальный район","Город Учалы","80653101"]
[null,null,null,null,"Учалинский муниципальный район","Ильчигуловский сельский совет","80653420"]
[null,null,null,null,"Учалинский муниципальный район","Ильчинский сельский совет","80653425"]
[null,null,null,null,"Учалинский муниципальный район","Имангуловский сельский совет","80653430"]
[null,null,null,null,"Учалинский муниципальный район","Кирябинский сельский совет","80653440"]
[null,null,null,null,"Учалинский муниципальный район","Кунакбаевский сельский совет","80653445"]
[null,null,null,null,"Учалинский муниципальный район","Мансуровский сельский совет","80653449"]
[null,null,null,null,"Учалинский муниципальный район","Миндякский сельский совет","80653448"]
[null,null,null,null,"Учалинский муниципальный район","Наурузовский сельский совет","80653450"]
[null,null,null,null,"Учалинский муниципальный район","Новобайрамгуловский сельский совет","80653455"]
[null,null,null,null,"Учалинский муниципальный район","Поляковский сельский совет","80653465"]
[null,null,null,null,"Учалинский муниципальный район","Сафаровский сельский совет","80653470"]
[null,null,null,null,"Учалинский муниципальный район","Тунгатаровский сельский совет","80653484"]
[null,null,null,null,"Учалинский муниципальный район","Уразовский сельский совет","80653488"]
[null,null,null,null,"Учалинский муниципальный район","Уральский сельский совет","80653491"]
[null,null,null,null,"Учалинский муниципальный район","Учалинский сельский совет","80653496"]
[null,null,null,null,"Федоровский муниципальный район"," Все муниципальные образования","80654000"]
[null,null,null,null,"Федоровский муниципальный район","Бала-Четырманский сельский совет","80654405"]
[null,null,null,null,"Федоровский муниципальный район","Балыклинский сельский совет","80654410"]
[null,null,null,null,"Федоровский муниципальный район","Булякаевский сельский совет","80654415"]
[null,null,null,null,"Федоровский муниципальный район","Верхнеяушевский сельский совет","80654416"]
[null,null,null,null,"Федоровский муниципальный район","Гончаровский сельский совет","80654417"]
[null,null,null,null,"Федоровский муниципальный район","Дедовский сельский совет","80654420"]
[null,null,null,null,"Федоровский муниципальный район","Денискинский сельский совет","80654425"]
[null,null,null,null,"Федоровский муниципальный район","Каралачикский сельский совет","80654427"]
[null,null,null,null,"Федоровский муниципальный район","Михайловский сельский совет","80654430"]
[null,null,null,null,"Федоровский муниципальный район","Покровский сельский совет","80654440"]
[null,null,null,null,"Федоровский муниципальный район","Пугачевский сельский совет","80654445"]
[null,null,null,null,"Федоровский муниципальный район","Разинский сельский совет","80654450"]
[null,null,null,null,"Федоровский муниципальный район","Теняевский сельский совет","80654455"]
[null,null,null,null,"Федоровский муниципальный район","Федоровский сельский совет","80654460"]
[null,null,null,null,"Хайбуллинский муниципальный район"," Все муниципальные образования","80655000"]
[null,null,null,null,"Хайбуллинский муниципальный район","Абишевский сельский совет","80655405"]
[null,null,null,null,"Хайбуллинский муниципальный район","Акъюловский сельский совет","80655410"]
[null,null,null,null,"Хайбуллинский муниципальный район","Акъярский сельский совет","80655415"]
[null,null,null,null,"Хайбуллинский муниципальный район","Антинганский сельский совет","80655420"]
[null,null,null,null,"Хайбуллинский муниципальный район","Бурибайский сельский совет","80655424"]
[null,null,null,null,"Хайбуллинский муниципальный район","Ивановский сельский совет","80655425"]
[null,null,null,null,"Хайбуллинский муниципальный район","Маканский сельский совет","80655430"]
[null,null,null,null,"Хайбуллинский муниципальный район","Новозирганский сельский совет","80655432"]
[null,null,null,null,"Хайбуллинский муниципальный район","Самарский сельский совет","80655433"]
[null,null,null,null,"Хайбуллинский муниципальный район","Таналыкский сельский совет","80655440"]
[null,null,null,null,"Хайбуллинский муниципальный район","Татыр-Узякский сельский совет","80655435"]
[null,null,null,null,"Хайбуллинский муниципальный район","Уфимский сельский совет","80655445"]
[null,null,null,null,"Хайбуллинский муниципальный район","Федоровский сельский совет","80655450"]
[null,null,null,null,"Хайбуллинский муниципальный район","Целинный сельский совет","80655455"]
[null,null,null,null,"Чекмагушевский муниципальный район"," Все муниципальные образования","80656000"]
[null,null,null,null,"Чекмагушевский муниципальный район","Башировский сельский совет","80656410"]
[null,null,null,null,"Чекмагушевский муниципальный район","Имянликулевский сельский совет","80656415"]
[null,null,null,null,"Чекмагушевский муниципальный район","Калмашбашевский сельский совет","80656420"]
[null,null,null,null,"Чекмагушевский муниципальный район","Новобалтачевский сельский совет","80656425"]
[null,null,null,null,"Чекмагушевский муниципальный район","Новокутовский сельский совет","80656435"]
[null,null,null,null,"Чекмагушевский муниципальный район","Рапатовский сельский совет","80656440"]
[null,null,null,null,"Чекмагушевский муниципальный район","Резяповский сельский совет","80656445"]
[null,null,null,null,"Чекмагушевский муниципальный район","Старокалмашевский сельский совет","80656450"]
[null,null,null,null,"Чекмагушевский муниципальный район","Тайняшевский сельский совет","80656455"]
[null,null,null,null,"Чекмагушевский муниципальный район","Тузлукушевский сельский совет","80656460"]
[null,null,null,null,"Чекмагушевский муниципальный район","Урнякский сельский совет","80656465"]
[null,null,null,null,"Чекмагушевский муниципальный район","Чекмагушевский сельский совет","80656470"]
[null,null,null,null,"Чекмагушевский муниципальный район","Юмашевский сельский совет","80656475"]
[null,null,null,null,"Чишминский муниципальный район"," Все муниципальные образования","80657000"]
[null,null,null,null,"Чишминский муниципальный район","Алкинский сельский совет","80657405"]
[null,null,null,null,"Чишминский муниципальный район","Аровский сельский совет","80657410"]
[null,null,null,null,"Чишминский муниципальный район","Арслановский сельский совет","80657415"]
[null,null,null,null,"Чишминский муниципальный район","Дмитриевский сельский совет","80657420"]
[null,null,null,null,"Чишминский муниципальный район","Дурасовский сельский совет","80657425"]
[null,null,null,null,"Чишминский муниципальный район","Енгалышевский сельский совет","80657430"]
[null,null,null,null,"Чишминский муниципальный район","Еремеевский сельский совет","80657435"]
[null,null,null,null,"Чишминский муниципальный район","Ибрагимовский сельский совет","80657440"]
[null,null,null,null,"Чишминский муниципальный район","Кара-Якуповский сельский совет","80657445"]
[null,null,null,null,"Чишминский муниципальный район","Лесной сельский совет","80657446"]
[null,null,null,null,"Чишминский муниципальный район","Новотроицкий сельский совет","80657450"]
[null,null,null,null,"Чишминский муниципальный район","Сафаровский сельский совет","80657455"]
[null,null,null,null,"Чишминский муниципальный район","Чишминский поссовет","80657151"]
[null,null,null,null,"Чишминский муниципальный район","Чишминский сельский совет","80657465"]
[null,null,null,null,"Чишминский муниципальный район","Чувалкиповский сельский совет","80657470"]
[null,null,null,null,"Чишминский муниципальный район","Шингак-Кульский сельский совет","80657475"]
[null,null,null,null,"Шаранский муниципальный район"," Все муниципальные образования","80658000"]
[null,null,null,null,"Шаранский муниципальный район","Акбарисовский сельский совет","80658405"]
[null,null,null,null,"Шаранский муниципальный район","Базгиевский сельский совет","80658410"]
[null,null,null,null,"Шаранский муниципальный район","Дмитриево-Полянский сельский совет","80658415"]
[null,null,null,null,"Шаранский муниципальный район","Дюртюлинский сельский совет","80658420"]
[null,null,null,null,"Шаранский муниципальный район","Зириклинский сельский совет","80658425"]
[null,null,null,null,"Шаранский муниципальный район","Мичуринский сельский совет","80658430"]
[null,null,null,null,"Шаранский муниципальный район","Нижнезаитовский сельский совет","80658435"]
[null,null,null,null,"Шаранский муниципальный район","Нижнеташлинский сельский совет","80658440"]
[null,null,null,null,"Шаранский муниципальный район","Нуреевский сельский совет","80658445"]
[null,null,null,null,"Шаранский муниципальный район","Писаревский сельский совет","80658455"]
[null,null,null,null,"Шаранский муниципальный район","Старотумбагушевский сельский совет","80658465"]
[null,null,null,null,"Шаранский муниципальный район","Чалмалинский сельский совет","80658475"]
[null,null,null,null,"Шаранский муниципальный район","Шаранский сельский совет","80658485"]
[null,null,null,null,"Янаульский муниципальный район"," Все муниципальные образования","80659000"]
[null,null,null,null,"Янаульский муниципальный район","Асавдыбашский сельский совет","80659410"]
[null,null,null,null,"Янаульский муниципальный район","Байгузинский сельский совет","80659415"]
[null,null,null,null,"Янаульский муниципальный район","Воядинский сельский совет","80659420"]
[null,null,null,null,"Янаульский муниципальный район","Город Янаул","80659101"]
[null,null,null,null,"Янаульский муниципальный район","Ижболдинский сельский совет","80659430"]
[null,null,null,null,"Янаульский муниципальный район","Истякский сельский совет","80659435"]
[null,null,null,null,"Янаульский муниципальный район","Иткинеевский сельский совет","80659440"]
[null,null,null,null,"Янаульский муниципальный район","Кармановский сельский совет","80659445"]
[null,null,null,null,"Янаульский муниципальный район","Кисак-Каинский сельский совет","80659450"]
[null,null,null,null,"Янаульский муниципальный район","Максимовский сельский совет","80659453"]
[null,null,null,null,"Янаульский муниципальный район","Месягутовский сельский совет","80659455"]
[null,null,null,null,"Янаульский муниципальный район","Новоартаульский сельский совет","80659460"]
[null,null,null,null,"Янаульский муниципальный район","Орловский сельский совет","80659465"]
[null,null,null,null,"Янаульский муниципальный район","Первомайский сельский совет","80659470"]
[null,null,null,null,"Янаульский муниципальный район","Сандугачевский сельский совет","80659475"]
[null,null,null,null,"Янаульский муниципальный район","Староваряшский сельский совет","80659480"]
[null,null,null,null,"Янаульский муниципальный район","Старокудашевский сельский совет","80659485"]
[null,null,null,null,"Янаульский муниципальный район","Шудекский сельский совет","80659490"]
[null,null,null,null,"Янаульский муниципальный район","Ямадинский сельский совет","80659495"]

{"sheet":"SheetList","index":17,"n_rows":35,"n_cols":8,"rows_kept":35,"cut":false,"hidden":true,"merged":[[34,3,37,7]]}
["Расчетные листы","Скрытые листы"]
["Инструкция","Columns"]
["Титульный","Rows"]
["Параметры","Reference"]
["Территории","RegistryMunicipal"]
["Показатели","SheetList"]
["Товары и услуги"]
["Потребительские характеристики"]
["Инвестиционная программа"]
["Изменения инвест. программы"]
["Ссылки на публикации"]
["Сведения об изменениях"]
["Комментарий"]
["Ошибки и предупреждения"]
[]
[]
[]
[]
[]
[]
[]
[]
[null,null,null,null,null,null,null,"*"]
[]
[]
[]
[]
[]
[]
[null,null,null,null,null,null,null,"*"]
[]
[]
[]
[]
[null,null,null,"* кнопки \"Сделать образец\" и \"Сделать шаблон\" не проверяют правильность листов с тарифами и листа \"Комментарий\". Рекомендуется проверить эти листы вручную перед сохранением."]